Workbook

Sheet Schedule
A1: HARVESTING SCHEDULE
A3: 31/35 count | B3: Tank1 | C3: Tank2 | D3: Tank3 | E3: Tank4 | F3: Tank5 | G3: Tank6 | H3: Tank7 | I3: Tank8 | J3: Weekly Tanks | K3: Annual Tanks
A4: Week1 | J4: =SUM(B4:I4) -> 0
A5: Week2 | J5: 0
A6: Week3 | J6: 0
A7: Week4 | J7: 0
A8: Week5 | J8: 0
A9: Week6 | J9: 0
A10: Week7 | J10: 0
A11: Week8 | J11: 0
A12: Week9 | J12: 0
A13: Week10 | J13: 0
A14: Week11 | J14: 0
A15: Week12 | B15: 1 | J15: 1
A16: Week13 | J16: 0
A17: Week14 | C17: 1 | J17: 1
A18: Week15 | J18: 0
A19: Week16 | D19: 1 | J19: 1
A20: Week17 | J20: 0
A21: Week18 | E21: 1 | J21: 1
A22: Week19 | J22: 0
A23: Week20 | F23: 1 | J23: 1
A24: Week21 | J24: 0
A25: Week22 | G25: 1 | J25: 1
A26: Week23 | J26: 0
A27: Week24 | B27: 1 | H27: 1 | J27: 2
A28: Week25 | J28: 0
A29: Week26 | C29: 1 | I29: 1 | J29: 2
A30: Week27 | J30: 0
A31: Week28 | D31: 1 | J31: 1
A32: Week29 | J32: 0
A33: Week30 | E33: 1 | J33: 1
A34: Week31 | J34: 0
A35: Week32 | F35: 1 | J35: 1
A36: Week33 | J36: =SUM(B36:I36) -> 0
A37: Week34 | G37: 1 | J37: 1
A38: Week35 | J38: 0
A39: Week36 | B39: 1 | H39: 1 | J39: 2
A40: Week37 | J40: 0
A41: Week38 | C41: 1 | I41: 1 | J41: 2
A42: Week39 | J42: 0
A43: Week40 | D43: 1 | J43: 1
A44: Week41 | J44: 0
A45: Week42 | E45: 1 | J45: 1
A46: Week43 | J46: 0
A47: Week44 | F47: 1 | J47: 1
A48: Week45 | J48: 0
A49: Week46 | G49: 1 | J49: 1
A50: Week47 | J50: 0
A51: Week48 | B51: 1 | H51: 1 | J51: 2
A52: Week49 | J52: 0
A53: Week50 | C53: 1 | I53: 1 | J53: 2
A54: Week51 | J54: 0
A55: Week52 | D55: 1 | J55: 1 | K55: =SUM(J4:J55) -> 27
A56: Week53 | J56: 0
A57: Week54 | E57: 1 | J57: 1
A58: Week55 | J58: 0
A59: Week56 | F59: 1 | J59: 1
A60: Week57 | J60: 0
A61: Week58 | G61: 1 | J61: 1
A62: Week59 | J62: 0
A63: Week60 | B63: 1 | H63: 1 | J63: 2
A64: Week61 | J64: 0
A65: Week62 | C65: 1 | I65: 1 | J65: 2
A66: Week63 | J66: 0
A67: Week64 | D67: 1 | J67: 1
A68: Week65 | J68: =SUM(B68:I68) -> 0
A69: Week66 | E69: 1 | J69: 1
A70: Week67 | J70: 0
A71: Week68 | F71: 1 | J71: 1
A72: Week69 | J72: 0
A73: Week70 | G73: 1 | J73: 1
A74: Week71 | J74: 0
A75: Week72 | B75: 1 | H75: 1 | J75: 2
A76: Week73 | J76: 0
A77: Week74 | C77: 1 | I77: 1 | J77: 2
A78: Week75 | J78: 0
A79: Week76 | D79: 1 | J79: 1
A80: Week77 | J80: 0
A81: Week78 | E81: 1 | J81: 1
A82: Week79 | J82: 0
A83: Week80 | F83: 1 | J83: 1
A84: Week81 | J84: 0
A85: Week82 | G85: 1 | J85: 1
A86: Week83 | J86: 0
A87: Week84 | B87: 1 | H87: 1 | J87: 2
A88: Week85 | J88: 0
A89: Week86 | C89: 1 | I89: 1 | J89: 2
A90: Week87 | J90: 0
A91: Week88 | D91: 1 | J91: 1
A92: Week89 | J92: 0
A93: Week90 | E93: 1 | J93: 1
A94: Week91 | J94: 0
A95: Week92 | F95: 1 | J95: 1
A96: Week93 | J96: 0
A97: Week94 | G97: 1 | J97: 1
A98: Week95 | J98: 0
A99: Week96 | B99: 1 | H99: 1 | J99: 2
A100: Week97 | J100: =SUM(B100:I100) -> 0
A101: Week98 | C101: 1 | I101: 1 | J101: 2
A102: Week99 | J102: 0
A103: Week100 | D103: 1 | J103: 1
A104: Week101 | J104: 0
A105: Week102 | E105: 1 | J105: 1
A106: Week103 | J106: 0
A107: Week104 | F107: 1 | J107: 1 | K107: =SUM(J56:J107) -> 34
A108: Week105 | J108: 0
A109: Week106 | G109: 1 | J109: 1
A110: Week107 | J110: 0
A111: Week108 | B111: 1 | H111: 1 | J111: 2
A112: Week109 | J112: 0
A113: Week110 | C113: 1 | I113: 1 | J113: 2
A114: Week111 | J114: 0
A115: Week112 | D115: 1 | J115: 1
A116: Week113 | J116: 0
A117: Week114 | E117: 1 | J117: 1
A118: Week115 | J118: 0
A119: Week116 | F119: 1 | J119: 1
A120: Week117 | J120: 0
A121: Week118 | G121: 1 | J121: 1
A122: Week119 | J122: 0
A123: Week120 | B123: 1 | H123: 1 | J123: 2
A124: Week121 | J124: 0
A125: Week122 | C125: 1 | I125: 1 | J125: 2
A126: Week123 | J126: 0
A127: Week124 | D127: 1 | J127: 1
A128: Week125 | J128: 0
A129: Week126 | E129: 1 | J129: 1
A130: Week127 | J130: 0
A131: Week128 | F131: 1 | J131: 1
A132: Week129 | J132: =SUM(B132:I132) -> 0
A133: Week130 | G133: 1 | J133: 1
A134: Week131 | J134: 0
A135: Week132 | B135: 1 | H135: 1 | J135: 2
A136: Week133 | J136: 0
A137: Week134 | C137: 1 | I137: 1 | J137: 2
A138: Week135 | J138: 0
A139: Week136 | D139: 1 | J139: 1
A140: Week137 | J140: 0
A141: Week138 | E141: 1 | J141: 1
A142: Week139 | J142: 0
A143: Week140 | F143: 1 | J143: 1
A144: Week141 | J144: 0
A145: Week142 | G145: 1 | J145: 1
A146: Week143 | J146: 0
A147: Week144 | B147: 1 | H147: 1 | J147: 2
A148: Week145 | J148: 0
A149: Week146 | C149: 1 | I149: 1 | J149: 2
A150: Week147 | J150: 0
A151: Week148 | D151: 1 | J151: 1
A152: Week149 | J152: 0
A153: Week150 | E153: 1 | J153: 1
A154: Week151 | J154: 0
A155: Week152 | F155: 1 | J155: 1
A156: Week153 | J156: 0
A157: Week154 | G157: 1 | J157: 1
A158: Week155 | J158: 0
A159: Week156 | B159: 1 | H159: 1 | J159: 2 | K159: =SUM(J108:J159) -> 35

Sheet Enter Operation Parameters Here
B2: OPERATING PARAMETERS
B4: Capital Investment Costs | D4: Unit Cost | E4: Number | F4: Cost | G4: Yrs of use | H4: Salvage value | I4: Yearly cost
B5: Land | C5: unit | F5: =+D5*E5 -> 0 | H5: =0.1*F5 -> 0
B6: Building: Pole barn with concrete floor | C6: unit | D6: 5000 | E6: 1 | F6: =+D6*E6 -> 5000 | G6: 30 | H6: =0.1*F6 -> 500 | I6: =(F6-H6)/G6 -> 150
B7: Complete System | C7: unit | D7: 6500 | E7: 8 | F7: =+D7*E7 -> 52000 | G7: 10 | H7: =0.1*F7 -> 5200 | I7: =(F7-H7)/G7 -> 4680
B8: Tank Plywood
B9: Support Equipment:
B10: Water Heater | D10: 4700 | E10: 1 | F10: =+D10*E10 -> 4700 | G10: 10 | H10: =0.1*F10 -> 470 | I10: =(F10-H10)/G10 -> 423
B11: Water Storage | D11: 2600 | E11: 1 | F11: 2600 | G11: 10 | H11: 260 | I11: 234
B12: Emergency Generator | C12: unit | D12: 4500 | E12: 1 | F12: 4500 | G12: 15 | H12: 450 | I12: 270
B13: Purge Tank | D13: 450 | E13: 1 | F13: 450 | G13: 10 | H13: 45 | I13: 40.5
B14: Agitators | D14: 600 | E14: 8 | F14: 4800 | G14: 5 | H14: 480 | I14: 864
B15: Blower | C15: unit | D15: 1700 | E15: 2 | F15: 3400 | G15: 5 | H15: 340 | I15: 612
B16: Booster Pumps
B17: Monitoring Equipment | D17: 750 | E17: 1 | F17: 750 | G17: 5 | H17: =0.1*F17 -> 75 | I17: =(F17-H17)/G17 -> 135
B18: Feeding Equipment
B19: Water Quality Equipment | D19: 6624 | E19: 1 | F19: 6624 | G19: 5 | H19: =0.3*F19 -> 1987.2 | I19: =(F19-H19)/G19 -> 927.36
B20: Fish Handling Equipment | D20: 1000 | E20: 1 | F20: 1000 | G20: 2 | H20: =0.1*F20 -> 100 | I20: =(F20-H20)/G20 -> 450
B21: Feed Storage | D21: 500 | E21: 1 | F21: 500 | G21: 10 | H21: 50 | I21: =(F21-H21)/G21 -> 45
B22: Setup labor & overhead | C22: unit | D22: =20*8*2*2*E7 -> 5120 | E22: 1 | F22: 5120 | G22: 1 | H22: =0 -> 0 | I22: =(F22-H22)/G22 -> 5120
B23: Settling pond | C23: unit | H23: =0.1*F23 -> 0
B24: Transport tank | C24: unit | H24: =0.1*F24 -> 0
B25: Well & motor | C25: unit
B26: Miscellaneous equipment (nets, scale, testing equipment, purge tanks, buckets etc) | C26: unit | D26: 5000 | E26: 1 | F26: 5000 | G26: 5 | H26: =0.1*F26 -> 500 | I26: =(F26-H26)/G26 -> 900
B27: Miscellaneous labor (installation of system, utilities, plumbing, etc) | C27: $ | H27: 0
B28: Total Capital Investment | D28: =SUM(D5:D27) -> 45044 | I28: =SUM(I5:I27) -> 14850.86
B31: Operating parameters per year | D31: Year
B32: Number of tanks harvested | D32: 34
B33: Water volume per tank | D33: 4200
B34: Water volume per phase | C34: gal | D34: =D33*D32 -> 142800
B35: Number of PLs stocked/tank | D35: 7200
B36: Size stocked | C36: gms | D36: 1.3
B37: Size harvested (in grams) | C37: gms | D37: 14
B38: Size Harvested (in pounds) | C38: lbs | D38: =D37/453.59237 -> 0.03086471671
B39: Survival rate | C39: % | D39: 0.6
B40: Feed cost | C40: $/lb | D40: 1.2
B41: Feed conversion | C41: ratio | D41: 1.3
B42: Beginning number of shrimp | C42: number | D42: =D35*D32 -> 244800
B43: Ending number of shrimp | C43: number | D43: =D42*D39 -> 146880
B44: Beginning biomass | C44: lb | D44: =D36*D42*0.0022 -> 700.128
B45: Ending biomass | C45: lb | D45: =D37*D43/453.592 -> 4533.413288
B46: Maximum standing biomass | C46: lb/gal | D46: =+D45/D34 -> 0.03174659165
B47: Feed used | C47: lb | D47: =+(D45-D44)*D41 -> 4983.270874
B48: Kwh per lb of production | C48: kwh/ lb prod. | D48: 1.5
B49: Kwh used | C49: kwh | D49: =D45*$D$48 -> 6800.119932
B50: Oxygen used | C50: $ / 100 cubic feet | D50: 0
B53: Operating costs | C53: unit | D53: cost/unit | E53: quantity/yr | F53: $/yr
B54: Variable Cost
B55: Post Larvaes | C55: $/piece | D55: 0.1 | E55: =$D$42 -> 244800 | F55: =+D55*E55 -> 24480
B56: Feed | C56: $/lb | D56: =D40 -> 1.2 | E56: =+D47 -> 4983.270874 | F56: =+D56*E56 -> 5979.925049
B57: Electricity | C57: $/kwh | D57: 0.06 | E57: =+D49 -> 6800.119932 | F57: =+D57*E57 -> 408.0071959
B58: Heating | C58: BTU million | D58: 8 | E58: =(E7*8000*24*365)/1000000 -> 560.64 | F58: =+D58*E58 -> 4485.12
B59: Oxygen Price | C59: $/cubic feet | D59: 0 | E59: 0 | F59: =D59*E59 -> 0
B60: Hired labor | C60: $/hour | D60: 10 | E60: =3*356 -> 1068 | F60: =+D60*E60 -> 10680
B61: Tansportation cost of PLs | C61: $/lb | D61: 0 | E61: =$D$42 -> 244800 | F61: =+D61*E61 -> 0
B62: Tansportation cost to Market | C62: $/lb | D62: 0 | E62: =$E$45 -> 0 | F62: =+D62*E62 -> 0
B63: Chemicals | C63: $/cycle | D63: 100 | E63: =E7 -> 8 | F63: =+D63*E63 -> 800
B64: Total variable cost | F64: =SUM(F55:F63) -> 46833.05224
B67: Overhead Cost | F67: $/year
B68: Oxygen tank rental | D68: 0 | F68: =+D68*12*E68 -> 0
B69: Electrical demand charge | F69: =+D69*12*E69 -> 0
B70: Maintenance (2% of cap inv) | C70: 0.02 | D70: =$C$70*I28 -> 297.0172 | E70: 12 | F70: =+D70*E70 -> 3564.2064
B71: Insurance | C71: 0.01 | D71: =$C$71*I28 -> 148.5086 | E71: 12 | F71: =+D71*E71 -> 1782.1032
B72: Adminstration/Management - legal fees, professional services, etc. (2% of total overhead) | C72: =0.02 -> 0.02 | D72: =C72*F64 -> 936.6610449 | E72: 12 | F72: =+D72*E72 -> 11239.93254
B73: Other
B74: Total overhead cost | F74: =SUM(F68:F73) -> 16586.24214
M76: 1 | N76: 2 | O76: 3 | P76: 4 | Q76: 5 | R76: 6 | S76: 7 | T76: 8 | U76: 9 | V76: 10 | W76: 11 | X76: 12 | Y76: 13 | Z76: 14 | AA76: 15 | AB76: 16 | AC76: 17 | AD76: 18 | AE76: 19 | AF76: 20 | AG76: 21 | AH76: 22 | AI76: 23 | AJ76: 24 | AK76: 25 | AL76: 26 | AM76: 27 | AN76: 28 | AO76: 29 | AP76: 30
B77: Loan Information | D77: Years | E77: Interest Rate | F77: Loan Balance | G77: Cost per year | M77: year 1 | N77: year 2 | O77: year 3 | P77: year 4 | Q77: year 5 | R77: year 6 | S77: year 7 | T77: year 8 | U77: year 9 | V77: year 10 | W77: year 11 | X77: year 12 | Y77: year 13 | Z77: year 14 | AA77: year 15 | AB77: year 16 | AC77: year 17 | AD77: year 18 | AE77: year 19 | AF77: year 20 | AG77: year 21 | AH77: year 22 | AI77: year 23 | AJ77: year 24 | AK77: year 25 | AL77: year 26 | AM77: year 27 | AN77: year 28 | AO77: year 29 | AP77: year 30
B78: Loan 1 | D78: 6 | E78: 0.08 | F78: =(100%-I78)*$D$28 -> 36035.2 | G78: =IF(D78>0,-PMT(E78,D78,F78),0) -> 7794.968206 | H78: Down Payment | I78: 0.2 | M78: =-IF($F78=0,0,IF($D78<M$76,0,IPMT($E78,M$76,$D78,$F78,))) -> 2882.816 | N78: 2489.843824 | O78: 2065.433873 | P78: 1607.071126 | Q78: 1112.03936 | R78: 577.4050523 | S78: 0 | T78: 0 | U78: 0 | V78: 0 | W78: 0 | X78: 0 | Y78: 0 | Z78: 0 | AA78: 0 | AB78: 0 | AC78: =-IF($F78=0,0,IF($D78<AC$76,0,IPMT($E78,AC$76,$D78,$F78,))) -> 0 | AD78: 0 | AE78: 0 | AF78: 0 | AG78: 0 | AH78: 0 | AI78: 0 | AJ78: 0 | AK78: 0 | AL78: 0 | AM78: 0 | AN78: 0 | AO78: 0 | AP78: 0
B79: Loan 2 | D79: 0 | E79: 0 | F79: 0 | G79: =IF(D79>0,-PMT(E79,D79,F79),0) -> 0 | M79: 0 | N79: 0 | O79: 0 | P79: 0 | Q79: 0 | R79: 0 | S79: 0 | T79: 0 | U79: 0 | V79: 0 | W79: 0 | X79: 0 | Y79: 0 | Z79: 0 | AA79: 0 | AB79: 0 | AC79: 0 | AD79: 0 | AE79: 0 | AF79: 0 | AG79: 0 | AH79: 0 | AI79: 0 | AJ79: 0 | AK79: 0 | AL79: 0 | AM79: 0 | AN79: 0 | AO79: 0 | AP79: 0
B80: Loan 3 | D80: 0 | E80: 0 | F80: 0 | G80: =IF(D80>0,-PMT(E80,D80,F80),0) -> 0 | M80: 0 | N80: 0 | O80: 0 | P80: 0 | Q80: 0 | R80: 0 | S80: 0 | T80: 0 | U80: 0 | V80: 0 | W80: 0 | X80: 0 | Y80: 0 | Z80: 0 | AA80: 0 | AB80: 0 | AC80: 0 | AD80: 0 | AE80: 0 | AF80: 0 | AG80: 0 | AH80: 0 | AI80: 0 | AJ80: 0 | AK80: 0 | AL80: 0 | AM80: 0 | AN80: 0 | AO80: 0 | AP80: 0
B81: Loan 4 | D81: 0 | E81: 0 | F81: 0 | G81: =IF(D81>0,-PMT(E81,D81,F81),0) -> 0 | M81: 0 | N81: 0 | O81: 0 | P81: 0 | Q81: 0 | R81: 0 | S81: 0 | T81: 0 | U81: 0 | V81: 0 | W81: 0 | X81: 0 | Y81: 0 | Z81: 0 | AA81: 0 | AB81: 0 | AC81: 0 | AD81: 0 | AE81: 0 | AF81: 0 | AG81: 0 | AH81: 0 | AI81: 0 | AJ81: 0 | AK81: 0 | AL81: 0 | AM81: 0 | AN81: 0 | AO81: 0 | AP81: 0
B82: Total loan cost | F82: =SUM(F78:F81) -> 36035.2 | G82: =SUM(G78:G81) -> 7794.968206 | L82: Interest | M82: =IF(SUM(M78:M81)=0,"",SUM(M78:M81)) -> 2882.816 | N82: 2489.843824 | O82: 2065.433873 | P82: 1607.071126 | Q82: 1112.03936 | R82: 577.4050523 | S82: 0 | T82: 0 | U82: 0 | V82: 0 | W82: 0 | X82: 0 | Y82: 0 | Z82: 0 | AA82: 0 | AB82: 0 | AC82: 0 | AD82: 0 | AE82: 0 | AF82: 0 | AG82: 0 | AH82: 0 | AI82: 0 | AJ82: 0 | AK82: 0 | AL82: 0 | AM82: 0 | AN82: 0 | AO82: 0 | AP82: 0 | AQ82: 0
L83: Principal | M83: =IF(M82=0,0,F78/D78) -> 6005.866667 | N83: =IF(N$82=0,0,$F$78/$D$78) -> 6005.866667 | O83: =IF(O$82=0,0,$F$78/$D$78) -> 6005.866667 | P83: 6005.866667 | Q83: 6005.866667 | R83: 6005.866667 | S83: 0 | T83: 0 | U83: 0 | V83: 0 | W83: 0 | X83: 0 | Y83: 0 | Z83: 0 | AA83: 0 | AB83: 0 | AC83: 0 | AD83: 0 | AE83: 0 | AF83: 0 | AG83: 0 | AH83: 0 | AI83: 0 | AJ83: 0 | AK83: 0 | AL83: 0 | AM83: 0 | AN83: 0 | AO83: 0 | AP83: 0
L84: Total | M84: =SUM(M82:M83) -> 8888.682667 | N84: =SUM(N82:N83) -> 8495.71049 | O84: 8071.30054 | P84: 7612.937793 | Q84: =SUM(Q82:Q83) -> 7117.906027 | R84: =SUM(R82:R83) -> 6583.271719 | S84: 0 | T84: 0 | U84: 0 | V84: 0 | W84: 0 | X84: 0 | Y84: 0 | Z84: 0 | AA84: 0 | AB84: 0 | AC84: 0 | AD84: 0 | AE84: 0 | AF84: 0 | AG84: 0 | AH84: 0 | AI84: 0 | AJ84: 0 | AK84: 0 | AL84: 0 | AM84: 0 | AN84: 0 | AO84: 0 | AP84: 0
B85: Gross Receipts | C85: unit | D85: cost/unit | E85: quantity/year | F85: $/year
B86: Direct Sale | C86: lb | D86: 12 | E86: =$D$45 -> 4533.413288 | F86: =+D86*E86 -> 54400.95945
B87: Wholesale Price | C87: lb | M87: =AVERAGE(M82:AP82) -> 357.8203078
B88: Miscellaneous Receipts | C88: $ | D88: 0 | F88: =+D88*E88 -> 0
B89: Total receipts | F89: =SUM(F86:F88) -> 54400.95945

Sheet Cash Flow
C1: CASH FLOW
B2: YEAR 1 | C2: YEAR 1
C3: January | D3: February | E3: March | F3: April | G3: May | H3: June | I3: July | J3: August | K3: September | L3: October | M3: November | N3: December | O3: Total
B4: Gross Receipts:
B5: Shrimp sale | G5: =('Enter Operation Parameters Here'!$D$86*'Enter Operation Parameters Here'!$E$86)/12 -> 4533.413288 | H5: =('Enter Operation Parameters Here'!$D$86*'Enter Operation Parameters Here'!$E$86)/12 -> 4533.413288 | I5: =('Enter Operation Parameters Here'!$D$86*'Enter Operation Parameters Here'!$E$86)/12 -> 4533.413288 | J5: =('Enter Operation Parameters Here'!$D$86*'Enter Operation Parameters Here'!$E$86)/12 -> 4533.413288 | K5: =('Enter Operation Parameters Here'!$D$86*'Enter Operation Parameters Here'!$E$86)/12 -> 4533.413288 | L5: =('Enter Operation Parameters Here'!$D$86*'Enter Operation Parameters Here'!$E$86)/12 -> 4533.413288 | M5: =('Enter Operation Parameters Here'!$D$86*'Enter Operation Parameters Here'!$E$86)/12 -> 4533.413288 | N5: =('Enter Operation Parameters Here'!$D$86*'Enter Operation Parameters Here'!$E$86)/12 -> 4533.413288 | O5: =SUM(C5:N5) -> 36267.3063
B6: Miscellaneous Receipts | O6: =SUM(C6:N6) -> 0
B7: Total Receipts | C7: =SUM(C5:C6) -> 0 | D7: 0 | E7: 0 | F7: 0 | G7: 4533.413288 | H7: 4533.413288 | I7: 4533.413288 | J7: 4533.413288 | K7: 4533.413288 | L7: 4533.413288 | M7: 4533.413288 | N7: 4533.413288 | O7: =SUM(C7:N7) -> 36267.3063
B9: Variable Inputs:
B10: PLs | C10: =('Enter Operation Parameters Here'!$D$55*'Enter Operation Parameters Here'!$D$42)/12 -> 2040 | D10: =('Enter Operation Parameters Here'!$D$55*'Enter Operation Parameters Here'!$D$42)/12 -> 2040 | E10: =('Enter Operation Parameters Here'!$D$55*'Enter Operation Parameters Here'!$D$42)/12 -> 2040 | F10: =('Enter Operation Parameters Here'!$D$55*'Enter Operation Parameters Here'!$D$42)/12 -> 2040 | G10: =('Enter Operation Parameters Here'!$D$55*'Enter Operation Parameters Here'!$D$42)/12 -> 2040 | H10: =('Enter Operation Parameters Here'!$D$55*'Enter Operation Parameters Here'!$D$42)/12 -> 2040 | I10: =('Enter Operation Parameters Here'!$D$55*'Enter Operation Parameters Here'!$D$42)/12 -> 2040 | J10: =('Enter Operation Parameters Here'!$D$55*'Enter Operation Parameters Here'!$D$42)/12 -> 2040 | K10: =('Enter Operation Parameters Here'!$D$55*'Enter Operation Parameters Here'!$D$42)/12 -> 2040 | L10: =('Enter Operation Parameters Here'!$D$55*'Enter Operation Parameters Here'!$D$42)/12 -> 2040 | M10: =('Enter Operation Parameters Here'!$D$55*'Enter Operation Parameters Here'!$D$42)/12 -> 2040 | N10: =('Enter Operation Parameters Here'!$D$55*'Enter Operation Parameters Here'!$D$42)/12 -> 2040 | O10: =SUM(C10:N10) -> 24480
B11: Feed | C11: ='Operating-Overhead Cost'!$C$5/12 -> 498.3270874 | D11: ='Operating-Overhead Cost'!$C$5/12 -> 498.3270874 | E11: ='Operating-Overhead Cost'!$C$5/12 -> 498.3270874 | F11: ='Operating-Overhead Cost'!$C$5/12 -> 498.3270874 | G11: ='Operating-Overhead Cost'!$C$5/12 -> 498.3270874 | H11: ='Operating-Overhead Cost'!$C$5/12 -> 498.3270874 | I11: ='Operating-Overhead Cost'!$C$5/12 -> 498.3270874 | J11: ='Operating-Overhead Cost'!$C$5/12 -> 498.3270874 | K11: ='Operating-Overhead Cost'!$C$5/12 -> 498.3270874 | L11: ='Operating-Overhead Cost'!$C$5/12 -> 498.3270874 | M11: ='Operating-Overhead Cost'!$C$5/12 -> 498.3270874 | N11: ='Operating-Overhead Cost'!$C$5/12 -> 498.3270874 | O11: =SUM(C11:N11) -> 5979.925049
B12: Chemicals | C12: ='Operating-Overhead Cost'!$C$11/12 -> 66.66666667 | D12: ='Operating-Overhead Cost'!$C$11/12 -> 66.66666667 | E12: ='Operating-Overhead Cost'!$C$11/12 -> 66.66666667 | F12: ='Operating-Overhead Cost'!$C$11/12 -> 66.66666667 | G12: ='Operating-Overhead Cost'!$C$11/12 -> 66.66666667 | H12: ='Operating-Overhead Cost'!$C$11/12 -> 66.66666667 | I12: ='Operating-Overhead Cost'!$C$11/12 -> 66.66666667 | J12: ='Operating-Overhead Cost'!$C$11/12 -> 66.66666667 | K12: ='Operating-Overhead Cost'!$C$11/12 -> 66.66666667 | L12: ='Operating-Overhead Cost'!$C$11/12 -> 66.66666667 | M12: ='Operating-Overhead Cost'!$C$11/12 -> 66.66666667 | N12: ='Operating-Overhead Cost'!$C$11/12 -> 66.66666667 | O12: =SUM(C12:N12) -> 800
B13: Electricity | C13: ='Operating-Overhead Cost'!$C$6/12 -> 34.00059966 | D13: ='Operating-Overhead Cost'!$C$6/12 -> 34.00059966 | E13: ='Operating-Overhead Cost'!$C$6/12 -> 34.00059966 | F13: ='Operating-Overhead Cost'!$C$6/12 -> 34.00059966 | G13: ='Operating-Overhead Cost'!$C$6/12 -> 34.00059966 | H13: ='Operating-Overhead Cost'!$C$6/12 -> 34.00059966 | I13: ='Operating-Overhead Cost'!$C$6/12 -> 34.00059966 | J13: ='Operating-Overhead Cost'!$C$6/12 -> 34.00059966 | K13: ='Operating-Overhead Cost'!$C$6/12 -> 34.00059966 | L13: ='Operating-Overhead Cost'!$C$6/12 -> 34.00059966 | M13: ='Operating-Overhead Cost'!$C$6/12 -> 34.00059966 | N13: ='Operating-Overhead Cost'!$C$6/12 -> 34.00059966 | O13: 408.0071959
B14: Oxygen | C14: ='Operating-Overhead Cost'!$C$7/12 -> 373.76 | D14: ='Operating-Overhead Cost'!$C$7/12 -> 373.76 | E14: ='Operating-Overhead Cost'!$C$7/12 -> 373.76 | F14: ='Operating-Overhead Cost'!$C$7/12 -> 373.76 | G14: ='Operating-Overhead Cost'!$C$7/12 -> 373.76 | H14: ='Operating-Overhead Cost'!$C$7/12 -> 373.76 | I14: ='Operating-Overhead Cost'!$C$7/12 -> 373.76 | J14: ='Operating-Overhead Cost'!$C$7/12 -> 373.76 | K14: ='Operating-Overhead Cost'!$C$7/12 -> 373.76 | L14: ='Operating-Overhead Cost'!$C$7/12 -> 373.76 | M14: ='Operating-Overhead Cost'!$C$7/12 -> 373.76 | N14: ='Operating-Overhead Cost'!$C$7/12 -> 373.76 | O14: 4485.12
B15: Hired Labor - Hours | C15: ='Operating-Overhead Cost'!$C$8/12 -> 890 | D15: ='Operating-Overhead Cost'!$C$8/12 -> 890 | E15: ='Operating-Overhead Cost'!$C$8/12 -> 890 | F15: ='Operating-Overhead Cost'!$C$8/12 -> 890 | G15: ='Operating-Overhead Cost'!$C$8/12 -> 890 | H15: ='Operating-Overhead Cost'!$C$8/12 -> 890 | I15: ='Operating-Overhead Cost'!$C$8/12 -> 890 | J15: ='Operating-Overhead Cost'!$C$8/12 -> 890 | K15: ='Operating-Overhead Cost'!$C$8/12 -> 890 | L15: ='Operating-Overhead Cost'!$C$8/12 -> 890 | M15: ='Operating-Overhead Cost'!$C$8/12 -> 890 | N15: ='Operating-Overhead Cost'!$C$8/12 -> 890 | O15: 10680
B16: Transportation Costs of Fingerlings | C16: ='Operating-Overhead Cost'!$C$9/12 -> 0 | D16: ='Operating-Overhead Cost'!$C$9/12 -> 0 | E16: ='Operating-Overhead Cost'!$C$9/12 -> 0 | F16: ='Operating-Overhead Cost'!$C$9/12 -> 0 | G16: ='Operating-Overhead Cost'!$C$9/12 -> 0 | H16: ='Operating-Overhead Cost'!$C$9/12 -> 0 | I16: ='Operating-Overhead Cost'!$C$9/12 -> 0 | J16: ='Operating-Overhead Cost'!$C$9/12 -> 0 | K16: ='Operating-Overhead Cost'!$C$9/12 -> 0 | L16: ='Operating-Overhead Cost'!$C$9/12 -> 0 | M16: ='Operating-Overhead Cost'!$C$9/12 -> 0 | N16: ='Operating-Overhead Cost'!$C$9/12 -> 0 | O16: 0
B17: Transportation Costs to Market | C17: ='Operating-Overhead Cost'!$C$10/12 -> 0 | D17: ='Operating-Overhead Cost'!$C$10/12 -> 0 | E17: ='Operating-Overhead Cost'!$C$10/12 -> 0 | F17: ='Operating-Overhead Cost'!$C$10/12 -> 0 | G17: ='Operating-Overhead Cost'!$C$10/12 -> 0 | H17: ='Operating-Overhead Cost'!$C$10/12 -> 0 | I17: ='Operating-Overhead Cost'!$C$10/12 -> 0 | J17: ='Operating-Overhead Cost'!$C$10/12 -> 0 | K17: ='Operating-Overhead Cost'!$C$10/12 -> 0 | L17: ='Operating-Overhead Cost'!$C$10/12 -> 0 | M17: ='Operating-Overhead Cost'!$C$10/12 -> 0 | N17: ='Operating-Overhead Cost'!$C$10/12 -> 0 | O17: 0
B18: Miscellaneous | O18: =5%*(O19+O26) -> 3007.605259
B19: Total Variable Cost | C19: =SUM(C10:C18) -> 3902.754354 | D19: 3902.754354 | E19: 3902.754354 | F19: 3902.754354 | G19: 3902.754354 | H19: 3902.754354 | I19: 3902.754354 | J19: 3902.754354 | K19: 3902.754354 | L19: 3902.754354 | M19: 3902.754354 | N19: 3902.754354 | O19: =SUM(O10:O17) -> 46833.05224
B21: Overhead Costs
B22: Repair & maintenance | C22: ='Enter Operation Parameters Here'!$D$70/12 -> 24.75143333 | D22: ='Enter Operation Parameters Here'!$D$70/12 -> 24.75143333 | E22: ='Enter Operation Parameters Here'!$D$70/12 -> 24.75143333 | F22: ='Enter Operation Parameters Here'!$D$70/12 -> 24.75143333 | G22: ='Enter Operation Parameters Here'!$D$70/12 -> 24.75143333 | H22: ='Enter Operation Parameters Here'!$D$70/12 -> 24.75143333 | I22: ='Enter Operation Parameters Here'!$D$70/12 -> 24.75143333 | J22: ='Enter Operation Parameters Here'!$D$70/12 -> 24.75143333 | K22: ='Enter Operation Parameters Here'!$D$70/12 -> 24.75143333 | L22: ='Enter Operation Parameters Here'!$D$70/12 -> 24.75143333 | M22: ='Enter Operation Parameters Here'!$D$70/12 -> 24.75143333 | N22: ='Enter Operation Parameters Here'!$D$70/12 -> 24.75143333 | O22: =SUM(C22:N22) -> 297.0172
B23: Insurance | C23: ='Enter Operation Parameters Here'!$F$71/12 -> 148.5086 | D23: ='Enter Operation Parameters Here'!$F$71/12 -> 148.5086 | E23: ='Enter Operation Parameters Here'!$F$71/12 -> 148.5086 | F23: ='Enter Operation Parameters Here'!$F$71/12 -> 148.5086 | G23: ='Enter Operation Parameters Here'!$F$71/12 -> 148.5086 | H23: ='Enter Operation Parameters Here'!$F$71/12 -> 148.5086 | I23: ='Enter Operation Parameters Here'!$F$71/12 -> 148.5086 | J23: ='Enter Operation Parameters Here'!$F$71/12 -> 148.5086 | K23: ='Enter Operation Parameters Here'!$F$71/12 -> 148.5086 | L23: ='Enter Operation Parameters Here'!$F$71/12 -> 148.5086 | M23: ='Enter Operation Parameters Here'!$F$71/12 -> 148.5086 | N23: ='Enter Operation Parameters Here'!$F$71/12 -> 148.5086 | O23: =SUM(C23:N23) -> 1782.1032
B24: Adminstration/Management - legal fees, professional services, etc. | C24: ='Operating-Overhead Cost'!$C$16/12 -> 936.6610449 | D24: ='Operating-Overhead Cost'!$C$16/12 -> 936.6610449 | E24: ='Operating-Overhead Cost'!$C$16/12 -> 936.6610449 | F24: ='Operating-Overhead Cost'!$C$16/12 -> 936.6610449 | G24: ='Operating-Overhead Cost'!$C$16/12 -> 936.6610449 | H24: ='Operating-Overhead Cost'!$C$16/12 -> 936.6610449 | I24: ='Operating-Overhead Cost'!$C$16/12 -> 936.6610449 | J24: ='Operating-Overhead Cost'!$C$16/12 -> 936.6610449 | K24: ='Operating-Overhead Cost'!$C$16/12 -> 936.6610449 | L24: ='Operating-Overhead Cost'!$C$16/12 -> 936.6610449 | M24: ='Operating-Overhead Cost'!$C$16/12 -> 936.6610449 | N24: ='Operating-Overhead Cost'!$C$16/12 -> 936.6610449 | O24: =SUM(C24:N24) -> 11239.93254
B25: Other | C25: ='Enter Operation Parameters Here'!$G$73/12 -> 0 | D25: ='Enter Operation Parameters Here'!$G$73/12 -> 0 | E25: ='Enter Operation Parameters Here'!$G$73/12 -> 0 | F25: ='Enter Operation Parameters Here'!$G$73/12 -> 0 | G25: ='Enter Operation Parameters Here'!$G$73/12 -> 0 | H25: ='Enter Operation Parameters Here'!$G$73/12 -> 0 | I25: ='Enter Operation Parameters Here'!$G$73/12 -> 0 | J25: ='Enter Operation Parameters Here'!$G$73/12 -> 0 | K25: ='Enter Operation Parameters Here'!$G$73/12 -> 0 | L25: ='Enter Operation Parameters Here'!$G$73/12 -> 0 | M25: ='Enter Operation Parameters Here'!$G$73/12 -> 0 | N25: ='Enter Operation Parameters Here'!$G$73/12 -> 0 | O25: =SUM(C25:N25) -> 0
B26: Total Overhead Costs | C26: =SUM(C22:C25) -> 1109.921078 | D26: 1109.921078 | E26: 1109.921078 | F26: 1109.921078 | G26: 1109.921078 | H26: 1109.921078 | I26: 1109.921078 | J26: 1109.921078 | K26: 1109.921078 | L26: 1109.921078 | M26: 1109.921078 | N26: 1109.921078 | O26: 13319.05294
B28: Loan | C28: ='Enter Operation Parameters Here'!$M$83/12 -> 500.4888889 | D28: ='Enter Operation Parameters Here'!$M$83/12 -> 500.4888889 | E28: ='Enter Operation Parameters Here'!$M$83/12 -> 500.4888889 | F28: ='Enter Operation Parameters Here'!$M$83/12 -> 500.4888889 | G28: ='Enter Operation Parameters Here'!$M$83/12 -> 500.4888889 | H28: ='Enter Operation Parameters Here'!$M$83/12 -> 500.4888889 | I28: ='Enter Operation Parameters Here'!$M$83/12 -> 500.4888889 | J28: ='Enter Operation Parameters Here'!$M$83/12 -> 500.4888889 | K28: ='Enter Operation Parameters Here'!$M$83/12 -> 500.4888889 | L28: ='Enter Operation Parameters Here'!$M$83/12 -> 500.4888889 | M28: ='Enter Operation Parameters Here'!$M$83/12 -> 500.4888889 | N28: ='Enter Operation Parameters Here'!$M$83/12 -> 500.4888889 | O28: =SUM(F28:N28) -> 4504.4
B30: Cash Flow | C30: =C7-SUM(C19,C26,C28) -> -5513.164321 | D30: =D7-SUM(D19,D26,D28)+C30 -> -11026.32864 | E30: -16539.49296 | F30: -22052.65728 | G30: -23032.40832 | H30: -24012.15935 | I30: -24991.91038 | J30: -25971.66142 | K30: -26951.41245 | L30: -27931.16348 | M30: -28910.91452 | N30: -29890.66555 | O30: =O7-SUM(O18,O19,O26,O28) -> -31396.80414
B32: YEAR 2 | C32: YEAR 2
C33: January | D33: February | E33: March | F33: April | G33: May | H33: June | I33: July | J33: August | K33: September | L33: October | M33: November | N33: December
B34: Gross Receipts: | O34: =SUM(C34:N34) -> 0
B35: Shrimp sale | C35: =('Enter Operation Parameters Here'!$D$86*'Enter Operation Parameters Here'!$E$86)/12 -> 4533.413288 | D35: =('Enter Operation Parameters Here'!$D$86*'Enter Operation Parameters Here'!$E$86)/12 -> 4533.413288 | E35: =('Enter Operation Parameters Here'!$D$86*'Enter Operation Parameters Here'!$E$86)/12 -> 4533.413288 | F35: =('Enter Operation Parameters Here'!$D$86*'Enter Operation Parameters Here'!$E$86)/12 -> 4533.413288 | G35: =('Enter Operation Parameters Here'!$D$86*'Enter Operation Parameters Here'!$E$86)/12 -> 4533.413288 | H35: =('Enter Operation Parameters Here'!$D$86*'Enter Operation Parameters Here'!$E$86)/12 -> 4533.413288 | I35: =('Enter Operation Parameters Here'!$D$86*'Enter Operation Parameters Here'!$E$86)/12 -> 4533.413288 | J35: =('Enter Operation Parameters Here'!$D$86*'Enter Operation Parameters Here'!$E$86)/12 -> 4533.413288 | K35: =('Enter Operation Parameters Here'!$D$86*'Enter Operation Parameters Here'!$E$86)/12 -> 4533.413288 | L35: =('Enter Operation Parameters Here'!$D$86*'Enter Operation Parameters Here'!$E$86)/12 -> 4533.413288 | M35: =('Enter Operation Parameters Here'!$D$86*'Enter Operation Parameters Here'!$E$86)/12 -> 4533.413288 | N35: =('Enter Operation Parameters Here'!$D$86*'Enter Operation Parameters Here'!$E$86)/12 -> 4533.413288 | O35: =SUM(C35:N35) -> 54400.95945
B36: Miscellaneous Receipts | O36: =SUM(C36:N36) -> 0
B37: Total Receipts | C37: =SUM(C35:C36) -> 4533.413288 | D37: 4533.413288 | E37: 4533.413288 | F37: 4533.413288 | G37: 4533.413288 | H37: 4533.413288 | I37: 4533.413288 | J37: 4533.413288 | K37: 4533.413288 | L37: 4533.413288 | M37: 4533.413288 | N37: 4533.413288 | O37: =SUM(C37:N37) -> 54400.95945
B39: Variable Inputs:
B40: PLs | C40: =('Enter Operation Parameters Here'!$D$55*'Enter Operation Parameters Here'!$D$42)/12 -> 2040 | D40: =('Enter Operation Parameters Here'!$D$55*'Enter Operation Parameters Here'!$D$42)/12 -> 2040 | E40: =('Enter Operation Parameters Here'!$D$55*'Enter Operation Parameters Here'!$D$42)/12 -> 2040 | F40: =('Enter Operation Parameters Here'!$D$55*'Enter Operation Parameters Here'!$D$42)/12 -> 2040 | G40: =('Enter Operation Parameters Here'!$D$55*'Enter Operation Parameters Here'!$D$42)/12 -> 2040 | H40: =('Enter Operation Parameters Here'!$D$55*'Enter Operation Parameters Here'!$D$42)/12 -> 2040 | I40: =('Enter Operation Parameters Here'!$D$55*'Enter Operation Parameters Here'!$D$42)/12 -> 2040 | J40: =('Enter Operation Parameters Here'!$D$55*'Enter Operation Parameters Here'!$D$42)/12 -> 2040 | K40: =('Enter Operation Parameters Here'!$D$55*'Enter Operation Parameters Here'!$D$42)/12 -> 2040 | L40: =('Enter Operation Parameters Here'!$D$55*'Enter Operation Parameters Here'!$D$42)/12 -> 2040 | M40: =('Enter Operation Parameters Here'!$D$55*'Enter Operation Parameters Here'!$D$42)/12 -> 2040 | N40: =('Enter Operation Parameters Here'!$D$55*'Enter Operation Parameters Here'!$D$42)/12 -> 2040 | O40: =SUM(C40:N40) -> 24480
B41: Feed | C41: ='Operating-Overhead Cost'!$C$5/12 -> 498.3270874 | D41: ='Operating-Overhead Cost'!$C$5/12 -> 498.3270874 | E41: ='Operating-Overhead Cost'!$C$5/12 -> 498.3270874 | F41: ='Operating-Overhead Cost'!$C$5/12 -> 498.3270874 | G41: ='Operating-Overhead Cost'!$C$5/12 -> 498.3270874 | H41: ='Operating-Overhead Cost'!$C$5/12 -> 498.3270874 | I41: ='Operating-Overhead Cost'!$C$5/12 -> 498.3270874 | J41: ='Operating-Overhead Cost'!$C$5/12 -> 498.3270874 | K41: ='Operating-Overhead Cost'!$C$5/12 -> 498.3270874 | L41: ='Operating-Overhead Cost'!$C$5/12 -> 498.3270874 | M41: ='Operating-Overhead Cost'!$C$5/12 -> 498.3270874 | N41: ='Operating-Overhead Cost'!$C$5/12 -> 498.3270874 | O41: 5979.925049
B42: Chemicals | C42: ='Operating-Overhead Cost'!$C$11/12 -> 66.66666667 | D42: ='Operating-Overhead Cost'!$C$11/12 -> 66.66666667 | E42: ='Operating-Overhead Cost'!$C$11/12 -> 66.66666667 | F42: ='Operating-Overhead Cost'!$C$11/12 -> 66.66666667 | G42: ='Operating-Overhead Cost'!$C$11/12 -> 66.66666667 | H42: ='Operating-Overhead Cost'!$C$11/12 -> 66.66666667 | I42: ='Operating-Overhead Cost'!$C$11/12 -> 66.66666667 | J42: ='Operating-Overhead Cost'!$C$11/12 -> 66.66666667 | K42: ='Operating-Overhead Cost'!$C$11/12 -> 66.66666667 | L42: ='Operating-Overhead Cost'!$C$11/12 -> 66.66666667 | M42: ='Operating-Overhead Cost'!$C$11/12 -> 66.66666667 | N42: ='Operating-Overhead Cost'!$C$11/12 -> 66.66666667 | O42: 800
B43: Electricity | C43: ='Operating-Overhead Cost'!$C$6/12 -> 34.00059966 | D43: ='Operating-Overhead Cost'!$C$6/12 -> 34.00059966 | E43: ='Operating-Overhead Cost'!$C$6/12 -> 34.00059966 | F43: ='Operating-Overhead Cost'!$C$6/12 -> 34.00059966 | G43: ='Operating-Overhead Cost'!$C$6/12 -> 34.00059966 | H43: ='Operating-Overhead Cost'!$C$6/12 -> 34.00059966 | I43: ='Operating-Overhead Cost'!$C$6/12 -> 34.00059966 | J43: ='Operating-Overhead Cost'!$C$6/12 -> 34.00059966 | K43: ='Operating-Overhead Cost'!$C$6/12 -> 34.00059966 | L43: ='Operating-Overhead Cost'!$C$6/12 -> 34.00059966 | M43: ='Operating-Overhead Cost'!$C$6/12 -> 34.00059966 | N43: ='Operating-Overhead Cost'!$C$6/12 -> 34.00059966 | O43: 408.0071959
B44: Oxygen | C44: ='Operating-Overhead Cost'!$C$7/12 -> 373.76 | D44: ='Operating-Overhead Cost'!$C$7/12 -> 373.76 | E44: ='Operating-Overhead Cost'!$C$7/12 -> 373.76 | F44: ='Operating-Overhead Cost'!$C$7/12 -> 373.76 | G44: ='Operating-Overhead Cost'!$C$7/12 -> 373.76 | H44: ='Operating-Overhead Cost'!$C$7/12 -> 373.76 | I44: ='Operating-Overhead Cost'!$C$7/12 -> 373.76 | J44: ='Operating-Overhead Cost'!$C$7/12 -> 373.76 | K44: ='Operating-Overhead Cost'!$C$7/12 -> 373.76 | L44: ='Operating-Overhead Cost'!$C$7/12 -> 373.76 | M44: ='Operating-Overhead Cost'!$C$7/12 -> 373.76 | N44: ='Operating-Overhead Cost'!$C$7/12 -> 373.76 | O44: 4485.12
B45: Hired Labor - Hours | C45: ='Operating-Overhead Cost'!$C$8/12 -> 890 | D45: ='Operating-Overhead Cost'!$C$8/12 -> 890 | E45: ='Operating-Overhead Cost'!$C$8/12 -> 890 | F45: ='Operating-Overhead Cost'!$C$8/12 -> 890 | G45: ='Operating-Overhead Cost'!$C$8/12 -> 890 | H45: ='Operating-Overhead Cost'!$C$8/12 -> 890 | I45: ='Operating-Overhead Cost'!$C$8/12 -> 890 | J45: ='Operating-Overhead Cost'!$C$8/12 -> 890 | K45: ='Operating-Overhead Cost'!$C$8/12 -> 890 | L45: ='Operating-Overhead Cost'!$C$8/12 -> 890 | M45: ='Operating-Overhead Cost'!$C$8/12 -> 890 | N45: ='Operating-Overhead Cost'!$C$8/12 -> 890 | O45: 10680
B46: Transportation Costs of Fingerlings | C46: ='Operating-Overhead Cost'!$C$9/12 -> 0 | D46: ='Operating-Overhead Cost'!$C$9/12 -> 0 | E46: ='Operating-Overhead Cost'!$C$9/12 -> 0 | F46: ='Operating-Overhead Cost'!$C$9/12 -> 0 | G46: ='Operating-Overhead Cost'!$C$9/12 -> 0 | H46: ='Operating-Overhead Cost'!$C$9/12 -> 0 | I46: ='Operating-Overhead Cost'!$C$9/12 -> 0 | J46: ='Operating-Overhead Cost'!$C$9/12 -> 0 | K46: ='Operating-Overhead Cost'!$C$9/12 -> 0 | L46: ='Operating-Overhead Cost'!$C$9/12 -> 0 | M46: ='Operating-Overhead Cost'!$C$9/12 -> 0 | N46: ='Operating-Overhead Cost'!$C$9/12 -> 0 | O46: 0
B47: Transportation Costs to Market | C47: ='Operating-Overhead Cost'!$C$10/12 -> 0 | D47: ='Operating-Overhead Cost'!$C$10/12 -> 0 | E47: ='Operating-Overhead Cost'!$C$10/12 -> 0 | F47: ='Operating-Overhead Cost'!$C$10/12 -> 0 | G47: ='Operating-Overhead Cost'!$C$10/12 -> 0 | H47: ='Operating-Overhead Cost'!$C$10/12 -> 0 | I47: ='Operating-Overhead Cost'!$C$10/12 -> 0 | J47: ='Operating-Overhead Cost'!$C$10/12 -> 0 | K47: ='Operating-Overhead Cost'!$C$10/12 -> 0 | L47: ='Operating-Overhead Cost'!$C$10/12 -> 0 | M47: ='Operating-Overhead Cost'!$C$10/12 -> 0 | N47: ='Operating-Overhead Cost'!$C$10/12 -> 0 | O47: 0
B48: Miscellaneous | O48: =5%*(O49+O56) -> 3007.605259
B49: Total Variable Cost | C49: =SUM(C40:C48) -> 3902.754354 | D49: 3902.754354 | E49: 3902.754354 | F49: 3902.754354 | G49: 3902.754354 | H49: 3902.754354 | I49: 3902.754354 | J49: 3902.754354 | K49: 3902.754354 | L49: 3902.754354 | M49: 3902.754354 | N49: 3902.754354 | O49: =SUM(O40:O47) -> 46833.05224
B51: Overhead Costs
B52: Repair & maintenance | C52: ='Enter Operation Parameters Here'!$D$70/12 -> 24.75143333 | D52: ='Enter Operation Parameters Here'!$D$70/12 -> 24.75143333 | E52: ='Enter Operation Parameters Here'!$D$70/12 -> 24.75143333 | F52: ='Enter Operation Parameters Here'!$D$70/12 -> 24.75143333 | G52: ='Enter Operation Parameters Here'!$D$70/12 -> 24.75143333 | H52: ='Enter Operation Parameters Here'!$D$70/12 -> 24.75143333 | I52: ='Enter Operation Parameters Here'!$D$70/12 -> 24.75143333 | J52: ='Enter Operation Parameters Here'!$D$70/12 -> 24.75143333 | K52: ='Enter Operation Parameters Here'!$D$70/12 -> 24.75143333 | L52: ='Enter Operation Parameters Here'!$D$70/12 -> 24.75143333 | M52: ='Enter Operation Parameters Here'!$D$70/12 -> 24.75143333 | N52: ='Enter Operation Parameters Here'!$D$70/12 -> 24.75143333 | O52: =SUM(C52:N52) -> 297.0172
B53: Insurance | C53: ='Enter Operation Parameters Here'!$F$71/12 -> 148.5086 | D53: ='Enter Operation Parameters Here'!$F$71/12 -> 148.5086 | E53: ='Enter Operation Parameters Here'!$F$71/12 -> 148.5086 | F53: ='Enter Operation Parameters Here'!$F$71/12 -> 148.5086 | G53: ='Enter Operation Parameters Here'!$F$71/12 -> 148.5086 | H53: ='Enter Operation Parameters Here'!$F$71/12 -> 148.5086 | I53: ='Enter Operation Parameters Here'!$F$71/12 -> 148.5086 | J53: ='Enter Operation Parameters Here'!$F$71/12 -> 148.5086 | K53: ='Enter Operation Parameters Here'!$F$71/12 -> 148.5086 | L53: ='Enter Operation Parameters Here'!$F$71/12 -> 148.5086 | M53: ='Enter Operation Parameters Here'!$F$71/12 -> 148.5086 | N53: ='Enter Operation Parameters Here'!$F$71/12 -> 148.5086 | O53: =SUM(C53:N53) -> 1782.1032
B54: Adminstration/Management - legal fees, professional services, etc. | C54: ='Operating-Overhead Cost'!$C$16/12 -> 936.6610449 | D54: ='Operating-Overhead Cost'!$C$16/12 -> 936.6610449 | E54: ='Operating-Overhead Cost'!$C$16/12 -> 936.6610449 | F54: ='Operating-Overhead Cost'!$C$16/12 -> 936.6610449 | G54: ='Operating-Overhead Cost'!$C$16/12 -> 936.6610449 | H54: ='Operating-Overhead Cost'!$C$16/12 -> 936.6610449 | I54: ='Operating-Overhead Cost'!$C$16/12 -> 936.6610449 | J54: ='Operating-Overhead Cost'!$C$16/12 -> 936.6610449 | K54: ='Operating-Overhead Cost'!$C$16/12 -> 936.6610449 | L54: ='Operating-Overhead Cost'!$C$16/12 -> 936.6610449 | M54: ='Operating-Overhead Cost'!$C$16/12 -> 936.6610449 | N54: ='Operating-Overhead Cost'!$C$16/12 -> 936.6610449 | O54: =SUM(C54:N54) -> 11239.93254
B55: Other | C55: ='Enter Operation Parameters Here'!$G$73/12 -> 0 | D55: ='Enter Operation Parameters Here'!$G$73/12 -> 0 | E55: ='Enter Operation Parameters Here'!$G$73/12 -> 0 | F55: ='Enter Operation Parameters Here'!$G$73/12 -> 0 | G55: ='Enter Operation Parameters Here'!$G$73/12 -> 0 | H55: ='Enter Operation Parameters Here'!$G$73/12 -> 0 | I55: ='Enter Operation Parameters Here'!$G$73/12 -> 0 | J55: ='Enter Operation Parameters Here'!$G$73/12 -> 0 | K55: ='Enter Operation Parameters Here'!$G$73/12 -> 0 | L55: ='Enter Operation Parameters Here'!$G$73/12 -> 0 | M55: ='Enter Operation Parameters Here'!$G$73/12 -> 0 | N55: ='Enter Operation Parameters Here'!$G$73/12 -> 0 | O55: =SUM(C55:N55) -> 0
B56: Total Overhead Costs | C56: =SUM(C52:C55) -> 1109.921078 | D56: =SUM(D52:D55) -> 1109.921078 | E56: 1109.921078 | F56: 1109.921078 | G56: 1109.921078 | H56: 1109.921078 | I56: 1109.921078 | J56: 1109.921078 | K56: 1109.921078 | L56: 1109.921078 | M56: 1109.921078 | N56: 1109.921078 | O56: =SUM(O52:O55) -> 13319.05294
B58: Loan | C58: ='Enter Operation Parameters Here'!$N$83/12 -> 500.4888889 | D58: ='Enter Operation Parameters Here'!$N$83/12 -> 500.4888889 | E58: ='Enter Operation Parameters Here'!$N$83/12 -> 500.4888889 | F58: ='Enter Operation Parameters Here'!$N$83/12 -> 500.4888889 | G58: ='Enter Operation Parameters Here'!$N$83/12 -> 500.4888889 | H58: ='Enter Operation Parameters Here'!$N$83/12 -> 500.4888889 | I58: ='Enter Operation Parameters Here'!$N$83/12 -> 500.4888889 | J58: ='Enter Operation Parameters Here'!$N$83/12 -> 500.4888889 | K58: ='Enter Operation Parameters Here'!$N$83/12 -> 500.4888889 | L58: ='Enter Operation Parameters Here'!$N$83/12 -> 500.4888889 | M58: ='Enter Operation Parameters Here'!$N$83/12 -> 500.4888889 | N58: ='Enter Operation Parameters Here'!$N$83/12 -> 500.4888889 | O58: =SUM(C58:N58) -> 6005.866667
B60: Cash Flow | C60: =C37-SUM(C49,C56,C58)+N30 -> -30870.41658 | D60: =D37-SUM(D49,D56,D58)+C60 -> -31850.16761 | E60: -32829.91865 | F60: -33809.66968 | G60: -34789.42071 | H60: -35769.17175 | I60: -36748.92278 | J60: -37728.67381 | K60: -38708.42485 | L60: -39688.17588 | M60: -40667.92691 | N60: -41647.67795 | O60: =O37-SUM(O48,O49,O56,O58) -> -14764.61766
B62: YEAR 3 | C62: YEAR 3 | Q62: look 4 leap year
C63: January | D63: February | E63: March | F63: April | G63: May | H63: June | I63: July | J63: August | K63: September | L63: October | M63: November | N63: December
B64: Gross Receipts:
B65: Shrimp sale | C65: =('Enter Operation Parameters Here'!$D$86*'Enter Operation Parameters Here'!$E$86)/12 -> 4533.413288 | D65: =('Enter Operation Parameters Here'!$D$86*'Enter Operation Parameters Here'!$E$86)/12 -> 4533.413288 | E65: =('Enter Operation Parameters Here'!$D$86*'Enter Operation Parameters Here'!$E$86)/12 -> 4533.413288 | F65: =('Enter Operation Parameters Here'!$D$86*'Enter Operation Parameters Here'!$E$86)/12 -> 4533.413288 | G65: =('Enter Operation Parameters Here'!$D$86*'Enter Operation Parameters Here'!$E$86)/12 -> 4533.413288 | H65: =('Enter Operation Parameters Here'!$D$86*'Enter Operation Parameters Here'!$E$86)/12 -> 4533.413288 | I65: =('Enter Operation Parameters Here'!$D$86*'Enter Operation Parameters Here'!$E$86)/12 -> 4533.413288 | J65: =('Enter Operation Parameters Here'!$D$86*'Enter Operation Parameters Here'!$E$86)/12 -> 4533.413288 | K65: =('Enter Operation Parameters Here'!$D$86*'Enter Operation Parameters Here'!$E$86)/12 -> 4533.413288 | L65: =('Enter Operation Parameters Here'!$D$86*'Enter Operation Parameters Here'!$E$86)/12 -> 4533.413288 | M65: =('Enter Operation Parameters Here'!$D$86*'Enter Operation Parameters Here'!$E$86)/12 -> 4533.413288 | N65: =('Enter Operation Parameters Here'!$D$86*'Enter Operation Parameters Here'!$E$86)/12 -> 4533.413288 | O65: =SUM(C65:N65) -> 54400.95945
B66: Miscellaneous Receipts | O66: =SUM(C66:N66) -> 0
B67: Total Receipts | C67: =SUM(C65:C66) -> 4533.413288 | D67: 4533.413288 | E67: 4533.413288 | F67: 4533.413288 | G67: 4533.413288 | H67: 4533.413288 | I67: 4533.413288 | J67: 4533.413288 | K67: 4533.413288 | L67: 4533.413288 | M67: 4533.413288 | N67: 4533.413288 | O67: =SUM(C67:N67) -> 54400.95945
B69: Variable Inputs:
B70: PLs | C70: =('Enter Operation Parameters Here'!$D$55*'Enter Operation Parameters Here'!$D$42)/12 -> 2040 | D70: =('Enter Operation Parameters Here'!$D$55*'Enter Operation Parameters Here'!$D$42)/12 -> 2040 | E70: =('Enter Operation Parameters Here'!$D$55*'Enter Operation Parameters Here'!$D$42)/12 -> 2040 | F70: =('Enter Operation Parameters Here'!$D$55*'Enter Operation Parameters Here'!$D$42)/12 -> 2040 | G70: =('Enter Operation Parameters Here'!$D$55*'Enter Operation Parameters Here'!$D$42)/12 -> 2040 | H70: =('Enter Operation Parameters Here'!$D$55*'Enter Operation Parameters Here'!$D$42)/12 -> 2040 | I70: =('Enter Operation Parameters Here'!$D$55*'Enter Operation Parameters Here'!$D$42)/12 -> 2040 | J70: =('Enter Operation Parameters Here'!$D$55*'Enter Operation Parameters Here'!$D$42)/12 -> 2040 | K70: =('Enter Operation Parameters Here'!$D$55*'Enter Operation Parameters Here'!$D$42)/12 -> 2040 | L70: =('Enter Operation Parameters Here'!$D$55*'Enter Operation Parameters Here'!$D$42)/12 -> 2040 | M70: =('Enter Operation Parameters Here'!$D$55*'Enter Operation Parameters Here'!$D$42)/12 -> 2040 | N70: =('Enter Operation Parameters Here'!$D$55*'Enter Operation Parameters Here'!$D$42)/12 -> 2040 | O70: =SUM(C70:N70) -> 24480
B71: Feed | C71: ='Operating-Overhead Cost'!$C$5/12 -> 498.3270874 | D71: ='Operating-Overhead Cost'!$C$5/12 -> 498.3270874 | E71: ='Operating-Overhead Cost'!$C$5/12 -> 498.3270874 | F71: ='Operating-Overhead Cost'!$C$5/12 -> 498.3270874 | G71: ='Operating-Overhead Cost'!$C$5/12 -> 498.3270874 | H71: ='Operating-Overhead Cost'!$C$5/12 -> 498.3270874 | I71: ='Operating-Overhead Cost'!$C$5/12 -> 498.3270874 | J71: ='Operating-Overhead Cost'!$C$5/12 -> 498.3270874 | K71: ='Operating-Overhead Cost'!$C$5/12 -> 498.3270874 | L71: ='Operating-Overhead Cost'!$C$5/12 -> 498.3270874 | M71: ='Operating-Overhead Cost'!$C$5/12 -> 498.3270874 | N71: ='Operating-Overhead Cost'!$C$5/12 -> 498.3270874 | O71: 5979.925049
B72: Chemicals | C72: ='Operating-Overhead Cost'!$C$11/12 -> 66.66666667 | D72: ='Operating-Overhead Cost'!$C$11/12 -> 66.66666667 | E72: ='Operating-Overhead Cost'!$C$11/12 -> 66.66666667 | F72: ='Operating-Overhead Cost'!$C$11/12 -> 66.66666667 | G72: ='Operating-Overhead Cost'!$C$11/12 -> 66.66666667 | H72: ='Operating-Overhead Cost'!$C$11/12 -> 66.66666667 | I72: ='Operating-Overhead Cost'!$C$11/12 -> 66.66666667 | J72: ='Operating-Overhead Cost'!$C$11/12 -> 66.66666667 | K72: ='Operating-Overhead Cost'!$C$11/12 -> 66.66666667 | L72: ='Operating-Overhead Cost'!$C$11/12 -> 66.66666667 | M72: ='Operating-Overhead Cost'!$C$11/12 -> 66.66666667 | N72: ='Operating-Overhead Cost'!$C$11/12 -> 66.66666667 | O72: 800
B73: Electricity | C73: ='Operating-Overhead Cost'!$C$6/12 -> 34.00059966 | D73: ='Operating-Overhead Cost'!$C$6/12 -> 34.00059966 | E73: ='Operating-Overhead Cost'!$C$6/12 -> 34.00059966 | F73: ='Operating-Overhead Cost'!$C$6/12 -> 34.00059966 | G73: ='Operating-Overhead Cost'!$C$6/12 -> 34.00059966 | H73: ='Operating-Overhead Cost'!$C$6/12 -> 34.00059966 | I73: ='Operating-Overhead Cost'!$C$6/12 -> 34.00059966 | J73: ='Operating-Overhead Cost'!$C$6/12 -> 34.00059966 | K73: ='Operating-Overhead Cost'!$C$6/12 -> 34.00059966 | L73: ='Operating-Overhead Cost'!$C$6/12 -> 34.00059966 | M73: ='Operating-Overhead Cost'!$C$6/12 -> 34.00059966 | N73: ='Operating-Overhead Cost'!$C$6/12 -> 34.00059966 | O73: 408.0071959
B74: Oxygen | C74: ='Operating-Overhead Cost'!$C$7/12 -> 373.76 | D74: ='Operating-Overhead Cost'!$C$7/12 -> 373.76 | E74: ='Operating-Overhead Cost'!$C$7/12 -> 373.76 | F74: ='Operating-Overhead Cost'!$C$7/12 -> 373.76 | G74: ='Operating-Overhead Cost'!$C$7/12 -> 373.76 | H74: ='Operating-Overhead Cost'!$C$7/12 -> 373.76 | I74: ='Operating-Overhead Cost'!$C$7/12 -> 373.76 | J74: ='Operating-Overhead Cost'!$C$7/12 -> 373.76 | K74: ='Operating-Overhead Cost'!$C$7/12 -> 373.76 | L74: ='Operating-Overhead Cost'!$C$7/12 -> 373.76 | M74: ='Operating-Overhead Cost'!$C$7/12 -> 373.76 | N74: ='Operating-Overhead Cost'!$C$7/12 -> 373.76 | O74: 4485.12
B75: Hired Labor - Hours | C75: ='Operating-Overhead Cost'!$C$8/12 -> 890 | D75: ='Operating-Overhead Cost'!$C$8/12 -> 890 | E75: ='Operating-Overhead Cost'!$C$8/12 -> 890 | F75: ='Operating-Overhead Cost'!$C$8/12 -> 890 | G75: ='Operating-Overhead Cost'!$C$8/12 -> 890 | H75: ='Operating-Overhead Cost'!$C$8/12 -> 890 | I75: ='Operating-Overhead Cost'!$C$8/12 -> 890 | J75: ='Operating-Overhead Cost'!$C$8/12 -> 890 | K75: ='Operating-Overhead Cost'!$C$8/12 -> 890 | L75: ='Operating-Overhead Cost'!$C$8/12 -> 890 | M75: ='Operating-Overhead Cost'!$C$8/12 -> 890 | N75: ='Operating-Overhead Cost'!$C$8/12 -> 890 | O75: 10680
B76: Transportation Costs of Fingerlings | C76: ='Operating-Overhead Cost'!$C$9/12 -> 0 | D76: ='Operating-Overhead Cost'!$C$9/12 -> 0 | E76: ='Operating-Overhead Cost'!$C$9/12 -> 0 | F76: ='Operating-Overhead Cost'!$C$9/12 -> 0 | G76: ='Operating-Overhead Cost'!$C$9/12 -> 0 | H76: ='Operating-Overhead Cost'!$C$9/12 -> 0 | I76: ='Operating-Overhead Cost'!$C$9/12 -> 0 | J76: ='Operating-Overhead Cost'!$C$9/12 -> 0 | K76: ='Operating-Overhead Cost'!$C$9/12 -> 0 | L76: ='Operating-Overhead Cost'!$C$9/12 -> 0 | M76: ='Operating-Overhead Cost'!$C$9/12 -> 0 | N76: ='Operating-Overhead Cost'!$C$9/12 -> 0 | O76: 0
B77: Transportation Costs to Market | C77: ='Operating-Overhead Cost'!$C$10/12 -> 0 | D77: ='Operating-Overhead Cost'!$C$10/12 -> 0 | E77: ='Operating-Overhead Cost'!$C$10/12 -> 0 | F77: ='Operating-Overhead Cost'!$C$10/12 -> 0 | G77: ='Operating-Overhead Cost'!$C$10/12 -> 0 | H77: ='Operating-Overhead Cost'!$C$10/12 -> 0 | I77: ='Operating-Overhead Cost'!$C$10/12 -> 0 | J77: ='Operating-Overhead Cost'!$C$10/12 -> 0 | K77: ='Operating-Overhead Cost'!$C$10/12 -> 0 | L77: ='Operating-Overhead Cost'!$C$10/12 -> 0 | M77: ='Operating-Overhead Cost'!$C$10/12 -> 0 | N77: ='Operating-Overhead Cost'!$C$10/12 -> 0 | O77: 0
B78: Miscellaneous | O78: =5%*(O79+O86) -> 3007.605259
B79: Total Variable Cost | C79: =SUM(C70:C78) -> 3902.754354 | D79: 3902.754354 | E79: 3902.754354 | F79: 3902.754354 | G79: 3902.754354 | H79: 3902.754354 | I79: 3902.754354 | J79: 3902.754354 | K79: 3902.754354 | L79: 3902.754354 | M79: 3902.754354 | N79: 3902.754354 | O79: =SUM(O70:O77) -> 46833.05224
B81: Overhead Costs
B82: Repair & maintenance | C82: ='Enter Operation Parameters Here'!$D$70/12 -> 24.75143333 | D82: ='Enter Operation Parameters Here'!$D$70/12 -> 24.75143333 | E82: ='Enter Operation Parameters Here'!$D$70/12 -> 24.75143333 | F82: ='Enter Operation Parameters Here'!$D$70/12 -> 24.75143333 | G82: ='Enter Operation Parameters Here'!$D$70/12 -> 24.75143333 | H82: ='Enter Operation Parameters Here'!$D$70/12 -> 24.75143333 | I82: ='Enter Operation Parameters Here'!$D$70/12 -> 24.75143333 | J82: ='Enter Operation Parameters Here'!$D$70/12 -> 24.75143333 | K82: ='Enter Operation Parameters Here'!$D$70/12 -> 24.75143333 | L82: ='Enter Operation Parameters Here'!$D$70/12 -> 24.75143333 | M82: ='Enter Operation Parameters Here'!$D$70/12 -> 24.75143333 | N82: ='Enter Operation Parameters Here'!$D$70/12 -> 24.75143333 | O82: =SUM(C82:N82) -> 297.0172
B83: Insurance | C83: ='Enter Operation Parameters Here'!$F$71/12 -> 148.5086 | D83: ='Enter Operation Parameters Here'!$F$71/12 -> 148.5086 | E83: ='Enter Operation Parameters Here'!$F$71/12 -> 148.5086 | F83: ='Enter Operation Parameters Here'!$F$71/12 -> 148.5086 | G83: ='Enter Operation Parameters Here'!$F$71/12 -> 148.5086 | H83: ='Enter Operation Parameters Here'!$F$71/12 -> 148.5086 | I83: ='Enter Operation Parameters Here'!$F$71/12 -> 148.5086 | J83: ='Enter Operation Parameters Here'!$F$71/12 -> 148.5086 | K83: ='Enter Operation Parameters Here'!$F$71/12 -> 148.5086 | L83: ='Enter Operation Parameters Here'!$F$71/12 -> 148.5086 | M83: ='Enter Operation Parameters Here'!$F$71/12 -> 148.5086 | N83: ='Enter Operation Parameters Here'!$F$71/12 -> 148.5086 | O83: =SUM(C83:N83) -> 1782.1032
B84: Adminstration/Management - legal fees, professional services, etc. | C84: ='Operating-Overhead Cost'!$C$16/12 -> 936.6610449 | D84: ='Operating-Overhead Cost'!$C$16/12 -> 936.6610449 | E84: ='Operating-Overhead Cost'!$C$16/12 -> 936.6610449 | F84: ='Operating-Overhead Cost'!$C$16/12 -> 936.6610449 | G84: ='Operating-Overhead Cost'!$C$16/12 -> 936.6610449 | H84: ='Operating-Overhead Cost'!$C$16/12 -> 936.6610449 | I84: ='Operating-Overhead Cost'!$C$16/12 -> 936.6610449 | J84: ='Operating-Overhead Cost'!$C$16/12 -> 936.6610449 | K84: ='Operating-Overhead Cost'!$C$16/12 -> 936.6610449 | L84: ='Operating-Overhead Cost'!$C$16/12 -> 936.6610449 | M84: ='Operating-Overhead Cost'!$C$16/12 -> 936.6610449 | N84: ='Operating-Overhead Cost'!$C$16/12 -> 936.6610449 | O84: =SUM(C84:N84) -> 11239.93254
B85: Other | C85: ='Enter Operation Parameters Here'!$G$73/12 -> 0 | D85: ='Enter Operation Parameters Here'!$G$73/12 -> 0 | E85: ='Enter Operation Parameters Here'!$G$73/12 -> 0 | F85: ='Enter Operation Parameters Here'!$G$73/12 -> 0 | G85: ='Enter Operation Parameters Here'!$G$73/12 -> 0 | H85: ='Enter Operation Parameters Here'!$G$73/12 -> 0 | I85: ='Enter Operation Parameters Here'!$G$73/12 -> 0 | J85: ='Enter Operation Parameters Here'!$G$73/12 -> 0 | K85: ='Enter Operation Parameters Here'!$G$73/12 -> 0 | L85: ='Enter Operation Parameters Here'!$G$73/12 -> 0 | M85: ='Enter Operation Parameters Here'!$G$73/12 -> 0 | N85: ='Enter Operation Parameters Here'!$G$73/12 -> 0 | O85: =SUM(C85:N85) -> 0
B86: Total Overhead Costs | C86: =SUM(C82:C85) -> 1109.921078 | D86: =SUM(D82:D85) -> 1109.921078 | E86: =SUM(E82:E85) -> 1109.921078 | F86: =SUM(F82:F85) -> 1109.921078 | G86: =SUM(G82:G85) -> 1109.921078 | H86: =SUM(H82:H85) -> 1109.921078 | I86: =SUM(I82:I85) -> 1109.921078 | J86: =SUM(J82:J85) -> 1109.921078 | K86: =SUM(K82:K85) -> 1109.921078 | L86: =SUM(L82:L85) -> 1109.921078 | M86: =SUM(M82:M85) -> 1109.921078 | N86: =SUM(N82:N85) -> 1109.921078 | O86: =SUM(O82:O85) -> 13319.05294
B88: Loan | C88: ='Enter Operation Parameters Here'!$O$83/12 -> 500.4888889 | D88: ='Enter Operation Parameters Here'!$O$83/12 -> 500.4888889 | E88: ='Enter Operation Parameters Here'!$O$83/12 -> 500.4888889 | F88: ='Enter Operation Parameters Here'!$O$83/12 -> 500.4888889 | G88: ='Enter Operation Parameters Here'!$O$83/12 -> 500.4888889 | H88: ='Enter Operation Parameters Here'!$O$83/12 -> 500.4888889 | I88: ='Enter Operation Parameters Here'!$O$83/12 -> 500.4888889 | J88: ='Enter Operation Parameters Here'!$O$83/12 -> 500.4888889 | K88: ='Enter Operation Parameters Here'!$O$83/12 -> 500.4888889 | L88: ='Enter Operation Parameters Here'!$O$83/12 -> 500.4888889 | M88: ='Enter Operation Parameters Here'!$O$83/12 -> 500.4888889 | N88: ='Enter Operation Parameters Here'!$O$83/12 -> 500.4888889 | O88: =SUM(C88:N88) -> 6005.866667
B90: Cash Flow | C90: =C67-SUM(C79,C86,C88)+N60 -> -42627.42898 | D90: =D67-SUM(D79,D86,D88)+C90 -> -43607.18001 | E90: -44586.93105 | F90: -45566.68208 | G90: -46546.43311 | H90: -47526.18414 | I90: -48505.93518 | J90: -49485.68621 | K90: -50465.43724 | L90: -51445.18828 | M90: -52424.93931 | N90: -53404.69034 | O90: =O67-SUM(O78,O79,O86,O88) -> -14764.61766
B92: YEAR 4 | C92: YEAR 4
C93: January | D93: February | E93: March | F93: April | G93: May | H93: June | I93: July | J93: August | K93: September | L93: October | M93: November | N93: December
B94: Gross Receipts:
B95: Shrimp sale | C95: =('Enter Operation Parameters Here'!$D$86*'Enter Operation Parameters Here'!$E$86)/12 -> 4533.413288 | D95: =('Enter Operation Parameters Here'!$D$86*'Enter Operation Parameters Here'!$E$86)/12 -> 4533.413288 | E95: =('Enter Operation Parameters Here'!$D$86*'Enter Operation Parameters Here'!$E$86)/12 -> 4533.413288 | F95: =('Enter Operation Parameters Here'!$D$86*'Enter Operation Parameters Here'!$E$86)/12 -> 4533.413288 | G95: =('Enter Operation Parameters Here'!$D$86*'Enter Operation Parameters Here'!$E$86)/12 -> 4533.413288 | H95: =('Enter Operation Parameters Here'!$D$86*'Enter Operation Parameters Here'!$E$86)/12 -> 4533.413288 | I95: =('Enter Operation Parameters Here'!$D$86*'Enter Operation Parameters Here'!$E$86)/12 -> 4533.413288 | J95: =('Enter Operation Parameters Here'!$D$86*'Enter Operation Parameters Here'!$E$86)/12 -> 4533.413288 | K95: =('Enter Operation Parameters Here'!$D$86*'Enter Operation Parameters Here'!$E$86)/12 -> 4533.413288 | L95: =('Enter Operation Parameters Here'!$D$86*'Enter Operation Parameters Here'!$E$86)/12 -> 4533.413288 | M95: =('Enter Operation Parameters Here'!$D$86*'Enter Operation Parameters Here'!$E$86)/12 -> 4533.413288 | N95: =('Enter Operation Parameters Here'!$D$86*'Enter Operation Parameters Here'!$E$86)/12 -> 4533.413288 | O95: =SUM(C95:N95) -> 54400.95945
B96: Miscellaneous Receipts | O96: =SUM(C96:N96) -> 0
B97: Total Receipts | C97: =SUM(C95:C96) -> 4533.413288 | D97: 4533.413288 | E97: 4533.413288 | F97: 4533.413288 | G97: 4533.413288 | H97: 4533.413288 | I97: 4533.413288 | J97: 4533.413288 | K97: 4533.413288 | L97: 4533.413288 | M97: 4533.413288 | N97: 4533.413288 | O97: =SUM(C97:N97) -> 54400.95945
B99: Variable Inputs:
B100: PLs | C100: =('Enter Operation Parameters Here'!$D$55*'Enter Operation Parameters Here'!$D$42)/12 -> 2040 | D100: =('Enter Operation Parameters Here'!$D$55*'Enter Operation Parameters Here'!$D$42)/12 -> 2040 | E100: =('Enter Operation Parameters Here'!$D$55*'Enter Operation Parameters Here'!$D$42)/12 -> 2040 | F100: =('Enter Operation Parameters Here'!$D$55*'Enter Operation Parameters Here'!$D$42)/12 -> 2040 | G100: =('Enter Operation Parameters Here'!$D$55*'Enter Operation Parameters Here'!$D$42)/12 -> 2040 | H100: =('Enter Operation Parameters Here'!$D$55*'Enter Operation Parameters Here'!$D$42)/12 -> 2040 | I100: =('Enter Operation Parameters Here'!$D$55*'Enter Operation Parameters Here'!$D$42)/12 -> 2040 | J100: =('Enter Operation Parameters Here'!$D$55*'Enter Operation Parameters Here'!$D$42)/12 -> 2040 | K100: =('Enter Operation Parameters Here'!$D$55*'Enter Operation Parameters Here'!$D$42)/12 -> 2040 | L100: =('Enter Operation Parameters Here'!$D$55*'Enter Operation Parameters Here'!$D$42)/12 -> 2040 | M100: =('Enter Operation Parameters Here'!$D$55*'Enter Operation Parameters Here'!$D$42)/12 -> 2040 | N100: =('Enter Operation Parameters Here'!$D$55*'Enter Operation Parameters Here'!$D$42)/12 -> 2040 | O100: =SUM(C100:N100) -> 24480
B101: Feed | C101: ='Operating-Overhead Cost'!$C$5/12 -> 498.3270874 | D101: ='Operating-Overhead Cost'!$C$5/12 -> 498.3270874 | E101: ='Operating-Overhead Cost'!$C$5/12 -> 498.3270874 | F101: ='Operating-Overhead Cost'!$C$5/12 -> 498.3270874 | G101: ='Operating-Overhead Cost'!$C$5/12 -> 498.3270874 | H101: ='Operating-Overhead Cost'!$C$5/12 -> 498.3270874 | I101: ='Operating-Overhead Cost'!$C$5/12 -> 498.3270874 | J101: ='Operating-Overhead Cost'!$C$5/12 -> 498.3270874 | K101: ='Operating-Overhead Cost'!$C$5/12 -> 498.3270874 | L101: ='Operating-Overhead Cost'!$C$5/12 -> 498.3270874 | M101: ='Operating-Overhead Cost'!$C$5/12 -> 498.3270874 | N101: ='Operating-Overhead Cost'!$C$5/12 -> 498.3270874 | O101: 5979.925049
B102: Chemicals | C102: ='Operating-Overhead Cost'!$C$11/12 -> 66.66666667 | D102: ='Operating-Overhead Cost'!$C$11/12 -> 66.66666667 | E102: ='Operating-Overhead Cost'!$C$11/12 -> 66.66666667 | F102: ='Operating-Overhead Cost'!$C$11/12 -> 66.66666667 | G102: ='Operating-Overhead Cost'!$C$11/12 -> 66.66666667 | H102: ='Operating-Overhead Cost'!$C$11/12 -> 66.66666667 | I102: ='Operating-Overhead Cost'!$C$11/12 -> 66.66666667 | J102: ='Operating-Overhead Cost'!$C$11/12 -> 66.66666667 | K102: ='Operating-Overhead Cost'!$C$11/12 -> 66.66666667 | L102: ='Operating-Overhead Cost'!$C$11/12 -> 66.66666667 | M102: ='Operating-Overhead Cost'!$C$11/12 -> 66.66666667 | N102: ='Operating-Overhead Cost'!$C$11/12 -> 66.66666667 | O102: 800
B103: Electricity | C103: ='Operating-Overhead Cost'!$C$6/12 -> 34.00059966 | D103: ='Operating-Overhead Cost'!$C$6/12 -> 34.00059966 | E103: ='Operating-Overhead Cost'!$C$6/12 -> 34.00059966 | F103: ='Operating-Overhead Cost'!$C$6/12 -> 34.00059966 | G103: ='Operating-Overhead Cost'!$C$6/12 -> 34.00059966 | H103: ='Operating-Overhead Cost'!$C$6/12 -> 34.00059966 | I103: ='Operating-Overhead Cost'!$C$6/12 -> 34.00059966 | J103: ='Operating-Overhead Cost'!$C$6/12 -> 34.00059966 | K103: ='Operating-Overhead Cost'!$C$6/12 -> 34.00059966 | L103: ='Operating-Overhead Cost'!$C$6/12 -> 34.00059966 | M103: ='Operating-Overhead Cost'!$C$6/12 -> 34.00059966 | N103: ='Operating-Overhead Cost'!$C$6/12 -> 34.00059966 | O103: 408.0071959
B104: Oxygen | C104: ='Operating-Overhead Cost'!$C$7/12 -> 373.76 | D104: ='Operating-Overhead Cost'!$C$7/12 -> 373.76 | E104: ='Operating-Overhead Cost'!$C$7/12 -> 373.76 | F104: ='Operating-Overhead Cost'!$C$7/12 -> 373.76 | G104: ='Operating-Overhead Cost'!$C$7/12 -> 373.76 | H104: ='Operating-Overhead Cost'!$C$7/12 -> 373.76 | I104: ='Operating-Overhead Cost'!$C$7/12 -> 373.76 | J104: ='Operating-Overhead Cost'!$C$7/12 -> 373.76 | K104: ='Operating-Overhead Cost'!$C$7/12 -> 373.76 | L104: ='Operating-Overhead Cost'!$C$7/12 -> 373.76 | M104: ='Operating-Overhead Cost'!$C$7/12 -> 373.76 | N104: ='Operating-Overhead Cost'!$C$7/12 -> 373.76 | O104: 4485.12
B105: Hired Labor - Hours | C105: ='Operating-Overhead Cost'!$C$8/12 -> 890 | D105: ='Operating-Overhead Cost'!$C$8/12 -> 890 | E105: ='Operating-Overhead Cost'!$C$8/12 -> 890 | F105: ='Operating-Overhead Cost'!$C$8/12 -> 890 | G105: ='Operating-Overhead Cost'!$C$8/12 -> 890 | H105: ='Operating-Overhead Cost'!$C$8/12 -> 890 | I105: ='Operating-Overhead Cost'!$C$8/12 -> 890 | J105: ='Operating-Overhead Cost'!$C$8/12 -> 890 | K105: ='Operating-Overhead Cost'!$C$8/12 -> 890 | L105: ='Operating-Overhead Cost'!$C$8/12 -> 890 | M105: ='Operating-Overhead Cost'!$C$8/12 -> 890 | N105: ='Operating-Overhead Cost'!$C$8/12 -> 890 | O105: 10680
B106: Transportation Costs of Fingerlings | C106: ='Operating-Overhead Cost'!$C$9/12 -> 0 | D106: ='Operating-Overhead Cost'!$C$9/12 -> 0 | E106: ='Operating-Overhead Cost'!$C$9/12 -> 0 | F106: ='Operating-Overhead Cost'!$C$9/12 -> 0 | G106: ='Operating-Overhead Cost'!$C$9/12 -> 0 | H106: ='Operating-Overhead Cost'!$C$9/12 -> 0 | I106: ='Operating-Overhead Cost'!$C$9/12 -> 0 | J106: ='Operating-Overhead Cost'!$C$9/12 -> 0 | K106: ='Operating-Overhead Cost'!$C$9/12 -> 0 | L106: ='Operating-Overhead Cost'!$C$9/12 -> 0 | M106: ='Operating-Overhead Cost'!$C$9/12 -> 0 | N106: ='Operating-Overhead Cost'!$C$9/12 -> 0 | O106: 0
B107: Transportation Costs to Market | C107: ='Operating-Overhead Cost'!$C$10/12 -> 0 | D107: ='Operating-Overhead Cost'!$C$10/12 -> 0 | E107: ='Operating-Overhead Cost'!$C$10/12 -> 0 | F107: ='Operating-Overhead Cost'!$C$10/12 -> 0 | G107: ='Operating-Overhead Cost'!$C$10/12 -> 0 | H107: ='Operating-Overhead Cost'!$C$10/12 -> 0 | I107: ='Operating-Overhead Cost'!$C$10/12 -> 0 | J107: ='Operating-Overhead Cost'!$C$10/12 -> 0 | K107: ='Operating-Overhead Cost'!$C$10/12 -> 0 | L107: ='Operating-Overhead Cost'!$C$10/12 -> 0 | M107: ='Operating-Overhead Cost'!$C$10/12 -> 0 | N107: ='Operating-Overhead Cost'!$C$10/12 -> 0 | O107: 0
B108: Miscellaneous | O108: =5%*(O109+O116) -> 3007.605259
B109: Total Variable Cost | C109: =SUM(C100:C108) -> 3902.754354 | D109: 3902.754354 | E109: 3902.754354 | F109: 3902.754354 | G109: 3902.754354 | H109: 3902.754354 | I109: 3902.754354 | J109: 3902.754354 | K109: 3902.754354 | L109: 3902.754354 | M109: 3902.754354 | N109: 3902.754354 | O109: =SUM(O100:O107) -> 46833.05224
B111: Overhead Costs
B112: Repair & maintenance | C112: ='Enter Operation Parameters Here'!$D$70/12 -> 24.75143333 | D112: ='Enter Operation Parameters Here'!$D$70/12 -> 24.75143333 | E112: ='Enter Operation Parameters Here'!$D$70/12 -> 24.75143333 | F112: ='Enter Operation Parameters Here'!$D$70/12 -> 24.75143333 | G112: ='Enter Operation Parameters Here'!$D$70/12 -> 24.75143333 | H112: ='Enter Operation Parameters Here'!$D$70/12 -> 24.75143333 | I112: ='Enter Operation Parameters Here'!$D$70/12 -> 24.75143333 | J112: ='Enter Operation Parameters Here'!$D$70/12 -> 24.75143333 | K112: ='Enter Operation Parameters Here'!$D$70/12 -> 24.75143333 | L112: ='Enter Operation Parameters Here'!$D$70/12 -> 24.75143333 | M112: ='Enter Operation Parameters Here'!$D$70/12 -> 24.75143333 | N112: ='Enter Operation Parameters Here'!$D$70/12 -> 24.75143333 | O112: =SUM(C112:N112) -> 297.0172
B113: Insurance | C113: ='Enter Operation Parameters Here'!$F$71/12 -> 148.5086 | D113: ='Enter Operation Parameters Here'!$F$71/12 -> 148.5086 | E113: ='Enter Operation Parameters Here'!$F$71/12 -> 148.5086 | F113: ='Enter Operation Parameters Here'!$F$71/12 -> 148.5086 | G113: ='Enter Operation Parameters Here'!$F$71/12 -> 148.5086 | H113: ='Enter Operation Parameters Here'!$F$71/12 -> 148.5086 | I113: ='Enter Operation Parameters Here'!$F$71/12 -> 148.5086 | J113: ='Enter Operation Parameters Here'!$F$71/12 -> 148.5086 | K113: ='Enter Operation Parameters Here'!$F$71/12 -> 148.5086 | L113: ='Enter Operation Parameters Here'!$F$71/12 -> 148.5086 | M113: ='Enter Operation Parameters Here'!$F$71/12 -> 148.5086 | N113: ='Enter Operation Parameters Here'!$F$71/12 -> 148.5086 | O113: =SUM(C113:N113) -> 1782.1032
B114: Adminstration/Management - legal fees, professional services, etc. | C114: ='Operating-Overhead Cost'!$C$16/12 -> 936.6610449 | D114: ='Operating-Overhead Cost'!$C$16/12 -> 936.6610449 | E114: ='Operating-Overhead Cost'!$C$16/12 -> 936.6610449 | F114: ='Operating-Overhead Cost'!$C$16/12 -> 936.6610449 | G114: ='Operating-Overhead Cost'!$C$16/12 -> 936.6610449 | H114: ='Operating-Overhead Cost'!$C$16/12 -> 936.6610449 | I114: ='Operating-Overhead Cost'!$C$16/12 -> 936.6610449 | J114: ='Operating-Overhead Cost'!$C$16/12 -> 936.6610449 | K114: ='Operating-Overhead Cost'!$C$16/12 -> 936.6610449 | L114: ='Operating-Overhead Cost'!$C$16/12 -> 936.6610449 | M114: ='Operating-Overhead Cost'!$C$16/12 -> 936.6610449 | N114: ='Operating-Overhead Cost'!$C$16/12 -> 936.6610449 | O114: =SUM(C114:N114) -> 11239.93254
B115: Other | C115: ='Enter Operation Parameters Here'!$G$73/12 -> 0 | D115: ='Enter Operation Parameters Here'!$G$73/12 -> 0 | E115: ='Enter Operation Parameters Here'!$G$73/12 -> 0 | F115: ='Enter Operation Parameters Here'!$G$73/12 -> 0 | G115: ='Enter Operation Parameters Here'!$G$73/12 -> 0 | H115: ='Enter Operation Parameters Here'!$G$73/12 -> 0 | I115: ='Enter Operation Parameters Here'!$G$73/12 -> 0 | J115: ='Enter Operation Parameters Here'!$G$73/12 -> 0 | K115: ='Enter Operation Parameters Here'!$G$73/12 -> 0 | L115: ='Enter Operation Parameters Here'!$G$73/12 -> 0 | M115: ='Enter Operation Parameters Here'!$G$73/12 -> 0 | N115: ='Enter Operation Parameters Here'!$G$73/12 -> 0 | O115: =SUM(C115:N115) -> 0
B116: Total Overhead Costs | C116: =SUM(C112:C115) -> 1109.921078 | D116: =SUM(D112:D115) -> 1109.921078 | E116: =SUM(E112:E115) -> 1109.921078 | F116: =SUM(F112:F115) -> 1109.921078 | G116: =SUM(G112:G115) -> 1109.921078 | H116: =SUM(H112:H115) -> 1109.921078 | I116: =SUM(I112:I115) -> 1109.921078 | J116: =SUM(J112:J115) -> 1109.921078 | K116: =SUM(K112:K115) -> 1109.921078 | L116: =SUM(L112:L115) -> 1109.921078 | M116: =SUM(M112:M115) -> 1109.921078 | N116: =SUM(N112:N115) -> 1109.921078 | O116: =SUM(O112:O115) -> 13319.05294
B118: Loan | C118: ='Enter Operation Parameters Here'!$P$83/12 -> 500.4888889 | D118: ='Enter Operation Parameters Here'!$P$83/12 -> 500.4888889 | E118: ='Enter Operation Parameters Here'!$P$83/12 -> 500.4888889 | F118: ='Enter Operation Parameters Here'!$P$83/12 -> 500.4888889 | G118: ='Enter Operation Parameters Here'!$P$83/12 -> 500.4888889 | H118: ='Enter Operation Parameters Here'!$P$83/12 -> 500.4888889 | I118: ='Enter Operation Parameters Here'!$P$83/12 -> 500.4888889 | J118: ='Enter Operation Parameters Here'!$P$83/12 -> 500.4888889 | K118: ='Enter Operation Parameters Here'!$P$83/12 -> 500.4888889 | L118: ='Enter Operation Parameters Here'!$P$83/12 -> 500.4888889 | M118: ='Enter Operation Parameters Here'!$P$83/12 -> 500.4888889 | N118: ='Enter Operation Parameters Here'!$P$83/12 -> 500.4888889 | O118: =SUM(C118:N118) -> 6005.866667
B120: Cash Flow | C120: =C97-SUM(C109,C116,C118)+N90 -> -54384.44138 | D120: =D97-SUM(D109,D116,D118)+C120 -> -55364.19241 | E120: -56343.94344 | F120: -57323.69448 | G120: -58303.44551 | H120: -59283.19654 | I120: -60262.94758 | J120: -61242.69861 | K120: -62222.44964 | L120: -63202.20067 | M120: -64181.95171 | N120: -65161.70274 | O120: =O97-SUM(O108,O109,O116,O118) -> -14764.61766
B122: YEAR 5 | C122: YEAR 5
C123: January | D123: February | E123: March | F123: April | G123: May | H123: June | I123: July | J123: August | K123: September | L123: October | M123: November | N123: December
B124: Gross Receipts:
B125: Shrimp sale | C125: =('Enter Operation Parameters Here'!$D$86*'Enter Operation Parameters Here'!$E$86)/12 -> 4533.413288 | D125: =('Enter Operation Parameters Here'!$D$86*'Enter Operation Parameters Here'!$E$86)/12 -> 4533.413288 | E125: =('Enter Operation Parameters Here'!$D$86*'Enter Operation Parameters Here'!$E$86)/12 -> 4533.413288 | F125: =('Enter Operation Parameters Here'!$D$86*'Enter Operation Parameters Here'!$E$86)/12 -> 4533.413288 | G125: =('Enter Operation Parameters Here'!$D$86*'Enter Operation Parameters Here'!$E$86)/12 -> 4533.413288 | H125: =('Enter Operation Parameters Here'!$D$86*'Enter Operation Parameters Here'!$E$86)/12 -> 4533.413288 | I125: =('Enter Operation Parameters Here'!$D$86*'Enter Operation Parameters Here'!$E$86)/12 -> 4533.413288 | J125: =('Enter Operation Parameters Here'!$D$86*'Enter Operation Parameters Here'!$E$86)/12 -> 4533.413288 | K125: =('Enter Operation Parameters Here'!$D$86*'Enter Operation Parameters Here'!$E$86)/12 -> 4533.413288 | L125: =('Enter Operation Parameters Here'!$D$86*'Enter Operation Parameters Here'!$E$86)/12 -> 4533.413288 | M125: =('Enter Operation Parameters Here'!$D$86*'Enter Operation Parameters Here'!$E$86)/12 -> 4533.413288 | N125: =('Enter Operation Parameters Here'!$D$86*'Enter Operation Parameters Here'!$E$86)/12 -> 4533.413288 | O125: =SUM(C125:N125) -> 54400.95945
B126: Miscellaneous Receipts | O126: =SUM(C126:N126) -> 0
B127: Total Receipts | C127: =SUM(C125:C126) -> 4533.413288 | D127: 4533.413288 | E127: 4533.413288 | F127: 4533.413288 | G127: 4533.413288 | H127: 4533.413288 | I127: 4533.413288 | J127: 4533.413288 | K127: 4533.413288 | L127: 4533.413288 | M127: 4533.413288 | N127: 4533.413288 | O127: =SUM(C127:N127) -> 54400.95945
B129: Variable Inputs:
B130: PLs | C130: =('Enter Operation Parameters Here'!$D$55*'Enter Operation Parameters Here'!$D$42)/12 -> 2040 | D130: =('Enter Operation Parameters Here'!$D$55*'Enter Operation Parameters Here'!$D$42)/12 -> 2040 | E130: =('Enter Operation Parameters Here'!$D$55*'Enter Operation Parameters Here'!$D$42)/12 -> 2040 | F130: =('Enter Operation Parameters Here'!$D$55*'Enter Operation Parameters Here'!$D$42)/12 -> 2040 | G130: =('Enter Operation Parameters Here'!$D$55*'Enter Operation Parameters Here'!$D$42)/12 -> 2040 | H130: =('Enter Operation Parameters Here'!$D$55*'Enter Operation Parameters Here'!$D$42)/12 -> 2040 | I130: =('Enter Operation Parameters Here'!$D$55*'Enter Operation Parameters Here'!$D$42)/12 -> 2040 | J130: =('Enter Operation Parameters Here'!$D$55*'Enter Operation Parameters Here'!$D$42)/12 -> 2040 | K130: =('Enter Operation Parameters Here'!$D$55*'Enter Operation Parameters Here'!$D$42)/12 -> 2040 | L130: =('Enter Operation Parameters Here'!$D$55*'Enter Operation Parameters Here'!$D$42)/12 -> 2040 | M130: =('Enter Operation Parameters Here'!$D$55*'Enter Operation Parameters Here'!$D$42)/12 -> 2040 | N130: =('Enter Operation Parameters Here'!$D$55*'Enter Operation Parameters Here'!$D$42)/12 -> 2040 | O130: =SUM(C130:N130) -> 24480
B131: Feed | C131: ='Operating-Overhead Cost'!$C$5/12 -> 498.3270874 | D131: ='Operating-Overhead Cost'!$C$5/12 -> 498.3270874 | E131: ='Operating-Overhead Cost'!$C$5/12 -> 498.3270874 | F131: ='Operating-Overhead Cost'!$C$5/12 -> 498.3270874 | G131: ='Operating-Overhead Cost'!$C$5/12 -> 498.3270874 | H131: ='Operating-Overhead Cost'!$C$5/12 -> 498.3270874 | I131: ='Operating-Overhead Cost'!$C$5/12 -> 498.3270874 | J131: ='Operating-Overhead Cost'!$C$5/12 -> 498.3270874 | K131: ='Operating-Overhead Cost'!$C$5/12 -> 498.3270874 | L131: ='Operating-Overhead Cost'!$C$5/12 -> 498.3270874 | M131: ='Operating-Overhead Cost'!$C$5/12 -> 498.3270874 | N131: ='Operating-Overhead Cost'!$C$5/12 -> 498.3270874 | O131: 5979.925049
B132: Chemicals | C132: ='Operating-Overhead Cost'!$C$11/12 -> 66.66666667 | D132: ='Operating-Overhead Cost'!$C$11/12 -> 66.66666667 | E132: ='Operating-Overhead Cost'!$C$11/12 -> 66.66666667 | F132: ='Operating-Overhead Cost'!$C$11/12 -> 66.66666667 | G132: ='Operating-Overhead Cost'!$C$11/12 -> 66.66666667 | H132: ='Operating-Overhead Cost'!$C$11/12 -> 66.66666667 | I132: ='Operating-Overhead Cost'!$C$11/12 -> 66.66666667 | J132: ='Operating-Overhead Cost'!$C$11/12 -> 66.66666667 | K132: ='Operating-Overhead Cost'!$C$11/12 -> 66.66666667 | L132: ='Operating-Overhead Cost'!$C$11/12 -> 66.66666667 | M132: ='Operating-Overhead Cost'!$C$11/12 -> 66.66666667 | N132: ='Operating-Overhead Cost'!$C$11/12 -> 66.66666667 | O132: 800
B133: Electricity | C133: ='Operating-Overhead Cost'!$C$6/12 -> 34.00059966 | D133: ='Operating-Overhead Cost'!$C$6/12 -> 34.00059966 | E133: ='Operating-Overhead Cost'!$C$6/12 -> 34.00059966 | F133: ='Operating-Overhead Cost'!$C$6/12 -> 34.00059966 | G133: ='Operating-Overhead Cost'!$C$6/12 -> 34.00059966 | H133: ='Operating-Overhead Cost'!$C$6/12 -> 34.00059966 | I133: ='Operating-Overhead Cost'!$C$6/12 -> 34.00059966 | J133: ='Operating-Overhead Cost'!$C$6/12 -> 34.00059966 | K133: ='Operating-Overhead Cost'!$C$6/12 -> 34.00059966 | L133: ='Operating-Overhead Cost'!$C$6/12 -> 34.00059966 | M133: ='Operating-Overhead Cost'!$C$6/12 -> 34.00059966 | N133: ='Operating-Overhead Cost'!$C$6/12 -> 34.00059966 | O133: 408.0071959
B134: Oxygen | C134: ='Operating-Overhead Cost'!$C$7/12 -> 373.76 | D134: ='Operating-Overhead Cost'!$C$7/12 -> 373.76 | E134: ='Operating-Overhead Cost'!$C$7/12 -> 373.76 | F134: ='Operating-Overhead Cost'!$C$7/12 -> 373.76 | G134: ='Operating-Overhead Cost'!$C$7/12 -> 373.76 | H134: ='Operating-Overhead Cost'!$C$7/12 -> 373.76 | I134: ='Operating-Overhead Cost'!$C$7/12 -> 373.76 | J134: ='Operating-Overhead Cost'!$C$7/12 -> 373.76 | K134: ='Operating-Overhead Cost'!$C$7/12 -> 373.76 | L134: ='Operating-Overhead Cost'!$C$7/12 -> 373.76 | M134: ='Operating-Overhead Cost'!$C$7/12 -> 373.76 | N134: ='Operating-Overhead Cost'!$C$7/12 -> 373.76 | O134: 4485.12
B135: Hired Labor - Hours | C135: ='Operating-Overhead Cost'!$C$8/12 -> 890 | D135: ='Operating-Overhead Cost'!$C$8/12 -> 890 | E135: ='Operating-Overhead Cost'!$C$8/12 -> 890 | F135: ='Operating-Overhead Cost'!$C$8/12 -> 890 | G135: ='Operating-Overhead Cost'!$C$8/12 -> 890 | H135: ='Operating-Overhead Cost'!$C$8/12 -> 890 | I135: ='Operating-Overhead Cost'!$C$8/12 -> 890 | J135: ='Operating-Overhead Cost'!$C$8/12 -> 890 | K135: ='Operating-Overhead Cost'!$C$8/12 -> 890 | L135: ='Operating-Overhead Cost'!$C$8/12 -> 890 | M135: ='Operating-Overhead Cost'!$C$8/12 -> 890 | N135: ='Operating-Overhead Cost'!$C$8/12 -> 890 | O135: 10680
B136: Transportation Costs of Fingerlings | C136: ='Operating-Overhead Cost'!$C$9/12 -> 0 | D136: ='Operating-Overhead Cost'!$C$9/12 -> 0 | E136: ='Operating-Overhead Cost'!$C$9/12 -> 0 | F136: ='Operating-Overhead Cost'!$C$9/12 -> 0 | G136: ='Operating-Overhead Cost'!$C$9/12 -> 0 | H136: ='Operating-Overhead Cost'!$C$9/12 -> 0 | I136: ='Operating-Overhead Cost'!$C$9/12 -> 0 | J136: ='Operating-Overhead Cost'!$C$9/12 -> 0 | K136: ='Operating-Overhead Cost'!$C$9/12 -> 0 | L136: ='Operating-Overhead Cost'!$C$9/12 -> 0 | M136: ='Operating-Overhead Cost'!$C$9/12 -> 0 | N136: ='Operating-Overhead Cost'!$C$9/12 -> 0 | O136: 0
B137: Transportation Costs to Market | C137: ='Operating-Overhead Cost'!$C$10/12 -> 0 | D137: ='Operating-Overhead Cost'!$C$10/12 -> 0 | E137: ='Operating-Overhead Cost'!$C$10/12 -> 0 | F137: ='Operating-Overhead Cost'!$C$10/12 -> 0 | G137: ='Operating-Overhead Cost'!$C$10/12 -> 0 | H137: ='Operating-Overhead Cost'!$C$10/12 -> 0 | I137: ='Operating-Overhead Cost'!$C$10/12 -> 0 | J137: ='Operating-Overhead Cost'!$C$10/12 -> 0 | K137: ='Operating-Overhead Cost'!$C$10/12 -> 0 | L137: ='Operating-Overhead Cost'!$C$10/12 -> 0 | M137: ='Operating-Overhead Cost'!$C$10/12 -> 0 | N137: ='Operating-Overhead Cost'!$C$10/12 -> 0 | O137: 0
B138: Miscellaneous | O138: =5%*(O139+O146) -> 3007.605259
B139: Total Variable Cost | C139: =SUM(C130:C138) -> 3902.754354 | D139: 3902.754354 | E139: 3902.754354 | F139: 3902.754354 | G139: 3902.754354 | H139: 3902.754354 | I139: 3902.754354 | J139: 3902.754354 | K139: 3902.754354 | L139: 3902.754354 | M139: 3902.754354 | N139: 3902.754354 | O139: =SUM(O130:O137) -> 46833.05224
B141: Overhead Costs
B142: Repair & maintenance | C142: ='Enter Operation Parameters Here'!$D$70/12 -> 24.75143333 | D142: ='Enter Operation Parameters Here'!$D$70/12 -> 24.75143333 | E142: ='Enter Operation Parameters Here'!$D$70/12 -> 24.75143333 | F142: ='Enter Operation Parameters Here'!$D$70/12 -> 24.75143333 | G142: ='Enter Operation Parameters Here'!$D$70/12 -> 24.75143333 | H142: ='Enter Operation Parameters Here'!$D$70/12 -> 24.75143333 | I142: ='Enter Operation Parameters Here'!$D$70/12 -> 24.75143333 | J142: ='Enter Operation Parameters Here'!$D$70/12 -> 24.75143333 | K142: ='Enter Operation Parameters Here'!$D$70/12 -> 24.75143333 | L142: ='Enter Operation Parameters Here'!$D$70/12 -> 24.75143333 | M142: ='Enter Operation Parameters Here'!$D$70/12 -> 24.75143333 | N142: ='Enter Operation Parameters Here'!$D$70/12 -> 24.75143333 | O142: =SUM(C142:N142) -> 297.0172
B143: Insurance | C143: ='Enter Operation Parameters Here'!$F$71/12 -> 148.5086 | D143: ='Enter Operation Parameters Here'!$F$71/12 -> 148.5086 | E143: ='Enter Operation Parameters Here'!$F$71/12 -> 148.5086 | F143: ='Enter Operation Parameters Here'!$F$71/12 -> 148.5086 | G143: ='Enter Operation Parameters Here'!$F$71/12 -> 148.5086 | H143: ='Enter Operation Parameters Here'!$F$71/12 -> 148.5086 | I143: ='Enter Operation Parameters Here'!$F$71/12 -> 148.5086 | J143: ='Enter Operation Parameters Here'!$F$71/12 -> 148.5086 | K143: ='Enter Operation Parameters Here'!$F$71/12 -> 148.5086 | L143: ='Enter Operation Parameters Here'!$F$71/12 -> 148.5086 | M143: ='Enter Operation Parameters Here'!$F$71/12 -> 148.5086 | N143: ='Enter Operation Parameters Here'!$F$71/12 -> 148.5086 | O143: =SUM(C143:N143) -> 1782.1032
B144: Adminstration/Management - legal fees, professional services, etc. | C144: ='Operating-Overhead Cost'!$C$16/12 -> 936.6610449 | D144: ='Operating-Overhead Cost'!$C$16/12 -> 936.6610449 | E144: ='Operating-Overhead Cost'!$C$16/12 -> 936.6610449 | F144: ='Operating-Overhead Cost'!$C$16/12 -> 936.6610449 | G144: ='Operating-Overhead Cost'!$C$16/12 -> 936.6610449 | H144: ='Operating-Overhead Cost'!$C$16/12 -> 936.6610449 | I144: ='Operating-Overhead Cost'!$C$16/12 -> 936.6610449 | J144: ='Operating-Overhead Cost'!$C$16/12 -> 936.6610449 | K144: ='Operating-Overhead Cost'!$C$16/12 -> 936.6610449 | L144: ='Operating-Overhead Cost'!$C$16/12 -> 936.6610449 | M144: ='Operating-Overhead Cost'!$C$16/12 -> 936.6610449 | N144: ='Operating-Overhead Cost'!$C$16/12 -> 936.6610449 | O144: =SUM(C144:N144) -> 11239.93254
B145: Other | C145: ='Enter Operation Parameters Here'!$G$73/12 -> 0 | D145: ='Enter Operation Parameters Here'!$G$73/12 -> 0 | E145: ='Enter Operation Parameters Here'!$G$73/12 -> 0 | F145: ='Enter Operation Parameters Here'!$G$73/12 -> 0 | G145: ='Enter Operation Parameters Here'!$G$73/12 -> 0 | H145: ='Enter Operation Parameters Here'!$G$73/12 -> 0 | I145: ='Enter Operation Parameters Here'!$G$73/12 -> 0 | J145: ='Enter Operation Parameters Here'!$G$73/12 -> 0 | K145: ='Enter Operation Parameters Here'!$G$73/12 -> 0 | L145: ='Enter Operation Parameters Here'!$G$73/12 -> 0 | M145: ='Enter Operation Parameters Here'!$G$73/12 -> 0 | N145: ='Enter Operation Parameters Here'!$G$73/12 -> 0 | O145: =SUM(C145:N145) -> 0
B146: Total Overhead Costs | C146: =SUM(C142:C145) -> 1109.921078 | D146: =SUM(D142:D145) -> 1109.921078 | E146: =SUM(E142:E145) -> 1109.921078 | F146: =SUM(F142:F145) -> 1109.921078 | G146: =SUM(G142:G145) -> 1109.921078 | H146: =SUM(H142:H145) -> 1109.921078 | I146: =SUM(I142:I145) -> 1109.921078 | J146: =SUM(J142:J145) -> 1109.921078 | K146: =SUM(K142:K145) -> 1109.921078 | L146: =SUM(L142:L145) -> 1109.921078 | M146: =SUM(M142:M145) -> 1109.921078 | N146: =SUM(N142:N145) -> 1109.921078 | O146: =SUM(O142:O145) -> 13319.05294
B148: Loan | C148: ='Enter Operation Parameters Here'!$Q$83/12 -> 500.4888889 | D148: ='Enter Operation Parameters Here'!$Q$83/12 -> 500.4888889 | E148: ='Enter Operation Parameters Here'!$Q$83/12 -> 500.4888889 | F148: ='Enter Operation Parameters Here'!$Q$83/12 -> 500.4888889 | G148: ='Enter Operation Parameters Here'!$Q$83/12 -> 500.4888889 | H148: ='Enter Operation Parameters Here'!$Q$83/12 -> 500.4888889 | I148: ='Enter Operation Parameters Here'!$Q$83/12 -> 500.4888889 | J148: ='Enter Operation Parameters Here'!$Q$83/12 -> 500.4888889 | K148: ='Enter Operation Parameters Here'!$Q$83/12 -> 500.4888889 | L148: ='Enter Operation Parameters Here'!$Q$83/12 -> 500.4888889 | M148: ='Enter Operation Parameters Here'!$Q$83/12 -> 500.4888889 | N148: ='Enter Operation Parameters Here'!$Q$83/12 -> 500.4888889 | O148: =SUM(C148:N148) -> 6005.866667
B150: Cash Flow | C150: =C127-SUM(C139,C146,C148)+N120 -> -66141.45377 | D150: =D127-SUM(D139,D146,D148)+C150 -> -67121.20481 | E150: -68100.95584 | F150: -69080.70687 | G150: -70060.45791 | H150: -71040.20894 | I150: -72019.95997 | J150: -72999.71101 | K150: -73979.46204 | L150: -74959.21307 | M150: -75938.96411 | N150: -76918.71514 | O150: =O127-SUM(O138,O139,O146,O148) -> -14764.61766
B152: YEAR 6 | C152: YEAR 6
C153: January | D153: February | E153: March | F153: April | G153: May | H153: June | I153: July | J153: August | K153: September | L153: October | M153: November | N153: December
B154: Gross Receipts:
B155: Shrimp sale | C155: =('Enter Operation Parameters Here'!$D$86*'Enter Operation Parameters Here'!$E$86)/12 -> 4533.413288 | D155: =('Enter Operation Parameters Here'!$D$86*'Enter Operation Parameters Here'!$E$86)/12 -> 4533.413288 | E155: =('Enter Operation Parameters Here'!$D$86*'Enter Operation Parameters Here'!$E$86)/12 -> 4533.413288 | F155: =('Enter Operation Parameters Here'!$D$86*'Enter Operation Parameters Here'!$E$86)/12 -> 4533.413288 | G155: =('Enter Operation Parameters Here'!$D$86*'Enter Operation Parameters Here'!$E$86)/12 -> 4533.413288 | H155: =('Enter Operation Parameters Here'!$D$86*'Enter Operation Parameters Here'!$E$86)/12 -> 4533.413288 | I155: =('Enter Operation Parameters Here'!$D$86*'Enter Operation Parameters Here'!$E$86)/12 -> 4533.413288 | J155: =('Enter Operation Parameters Here'!$D$86*'Enter Operation Parameters Here'!$E$86)/12 -> 4533.413288 | K155: =('Enter Operation Parameters Here'!$D$86*'Enter Operation Parameters Here'!$E$86)/12 -> 4533.413288 | L155: =('Enter Operation Parameters Here'!$D$86*'Enter Operation Parameters Here'!$E$86)/12 -> 4533.413288 | M155: =('Enter Operation Parameters Here'!$D$86*'Enter Operation Parameters Here'!$E$86)/12 -> 4533.413288 | N155: =('Enter Operation Parameters Here'!$D$86*'Enter Operation Parameters Here'!$E$86)/12 -> 4533.413288 | O155: =SUM(C155:N155) -> 54400.95945
B156: Miscellaneous Receipts | O156: =SUM(C156:N156) -> 0
B157: Total Receipts | C157: =SUM(C155:C156) -> 4533.413288 | D157: 4533.413288 | E157: 4533.413288 | F157: 4533.413288 | G157: 4533.413288 | H157: 4533.413288 | I157: 4533.413288 | J157: 4533.413288 | K157: 4533.413288 | L157: 4533.413288 | M157: 4533.413288 | N157: 4533.413288 | O157: =SUM(C157:N157) -> 54400.95945
B159: Variable Inputs:
B160: PLs | C160: =('Enter Operation Parameters Here'!$D$55*'Enter Operation Parameters Here'!$D$42)/12 -> 2040 | D160: =('Enter Operation Parameters Here'!$D$55*'Enter Operation Parameters Here'!$D$42)/12 -> 2040 | E160: =('Enter Operation Parameters Here'!$D$55*'Enter Operation Parameters Here'!$D$42)/12 -> 2040 | F160: =('Enter Operation Parameters Here'!$D$55*'Enter Operation Parameters Here'!$D$42)/12 -> 2040 | G160: =('Enter Operation Parameters Here'!$D$55*'Enter Operation Parameters Here'!$D$42)/12 -> 2040 | H160: =('Enter Operation Parameters Here'!$D$55*'Enter Operation Parameters Here'!$D$42)/12 -> 2040 | I160: =('Enter Operation Parameters Here'!$D$55*'Enter Operation Parameters Here'!$D$42)/12 -> 2040 | J160: =('Enter Operation Parameters Here'!$D$55*'Enter Operation Parameters Here'!$D$42)/12 -> 2040 | K160: =('Enter Operation Parameters Here'!$D$55*'Enter Operation Parameters Here'!$D$42)/12 -> 2040 | L160: =('Enter Operation Parameters Here'!$D$55*'Enter Operation Parameters Here'!$D$42)/12 -> 2040 | M160: =('Enter Operation Parameters Here'!$D$55*'Enter Operation Parameters Here'!$D$42)/12 -> 2040 | N160: =('Enter Operation Parameters Here'!$D$55*'Enter Operation Parameters Here'!$D$42)/12 -> 2040 | O160: =SUM(C160:N160) -> 24480
B161: Feed | C161: ='Operating-Overhead Cost'!$C$5/12 -> 498.3270874 | D161: ='Operating-Overhead Cost'!$C$5/12 -> 498.3270874 | E161: ='Operating-Overhead Cost'!$C$5/12 -> 498.3270874 | F161: ='Operating-Overhead Cost'!$C$5/12 -> 498.3270874 | G161: ='Operating-Overhead Cost'!$C$5/12 -> 498.3270874 | H161: ='Operating-Overhead Cost'!$C$5/12 -> 498.3270874 | I161: ='Operating-Overhead Cost'!$C$5/12 -> 498.3270874 | J161: ='Operating-Overhead Cost'!$C$5/12 -> 498.3270874 | K161: ='Operating-Overhead Cost'!$C$5/12 -> 498.3270874 | L161: ='Operating-Overhead Cost'!$C$5/12 -> 498.3270874 | M161: ='Operating-Overhead Cost'!$C$5/12 -> 498.3270874 | N161: ='Operating-Overhead Cost'!$C$5/12 -> 498.3270874 | O161: 5979.925049
B162: Chemicals | C162: ='Operating-Overhead Cost'!$C$11/12 -> 66.66666667 | D162: ='Operating-Overhead Cost'!$C$11/12 -> 66.66666667 | E162: ='Operating-Overhead Cost'!$C$11/12 -> 66.66666667 | F162: ='Operating-Overhead Cost'!$C$11/12 -> 66.66666667 | G162: ='Operating-Overhead Cost'!$C$11/12 -> 66.66666667 | H162: ='Operating-Overhead Cost'!$C$11/12 -> 66.66666667 | I162: ='Operating-Overhead Cost'!$C$11/12 -> 66.66666667 | J162: ='Operating-Overhead Cost'!$C$11/12 -> 66.66666667 | K162: ='Operating-Overhead Cost'!$C$11/12 -> 66.66666667 | L162: ='Operating-Overhead Cost'!$C$11/12 -> 66.66666667 | M162: ='Operating-Overhead Cost'!$C$11/12 -> 66.66666667 | N162: ='Operating-Overhead Cost'!$C$11/12 -> 66.66666667 | O162: 800
B163: Electricity | C163: ='Operating-Overhead Cost'!$C$6/12 -> 34.00059966 | D163: ='Operating-Overhead Cost'!$C$6/12 -> 34.00059966 | E163: ='Operating-Overhead Cost'!$C$6/12 -> 34.00059966 | F163: ='Operating-Overhead Cost'!$C$6/12 -> 34.00059966 | G163: ='Operating-Overhead Cost'!$C$6/12 -> 34.00059966 | H163: ='Operating-Overhead Cost'!$C$6/12 -> 34.00059966 | I163: ='Operating-Overhead Cost'!$C$6/12 -> 34.00059966 | J163: ='Operating-Overhead Cost'!$C$6/12 -> 34.00059966 | K163: ='Operating-Overhead Cost'!$C$6/12 -> 34.00059966 | L163: ='Operating-Overhead Cost'!$C$6/12 -> 34.00059966 | M163: ='Operating-Overhead Cost'!$C$6/12 -> 34.00059966 | N163: ='Operating-Overhead Cost'!$C$6/12 -> 34.00059966 | O163: 408.0071959
B164: Oxygen | C164: ='Operating-Overhead Cost'!$C$7/12 -> 373.76 | D164: ='Operating-Overhead Cost'!$C$7/12 -> 373.76 | E164: ='Operating-Overhead Cost'!$C$7/12 -> 373.76 | F164: ='Operating-Overhead Cost'!$C$7/12 -> 373.76 | G164: ='Operating-Overhead Cost'!$C$7/12 -> 373.76 | H164: ='Operating-Overhead Cost'!$C$7/12 -> 373.76 | I164: ='Operating-Overhead Cost'!$C$7/12 -> 373.76 | J164: ='Operating-Overhead Cost'!$C$7/12 -> 373.76 | K164: ='Operating-Overhead Cost'!$C$7/12 -> 373.76 | L164: ='Operating-Overhead Cost'!$C$7/12 -> 373.76 | M164: ='Operating-Overhead Cost'!$C$7/12 -> 373.76 | N164: ='Operating-Overhead Cost'!$C$7/12 -> 373.76 | O164: 4485.12
B165: Hired Labor - Hours | C165: ='Operating-Overhead Cost'!$C$8/12 -> 890 | D165: ='Operating-Overhead Cost'!$C$8/12 -> 890 | E165: ='Operating-Overhead Cost'!$C$8/12 -> 890 | F165: ='Operating-Overhead Cost'!$C$8/12 -> 890 | G165: ='Operating-Overhead Cost'!$C$8/12 -> 890 | H165: ='Operating-Overhead Cost'!$C$8/12 -> 890 | I165: ='Operating-Overhead Cost'!$C$8/12 -> 890 | J165: ='Operating-Overhead Cost'!$C$8/12 -> 890 | K165: ='Operating-Overhead Cost'!$C$8/12 -> 890 | L165: ='Operating-Overhead Cost'!$C$8/12 -> 890 | M165: ='Operating-Overhead Cost'!$C$8/12 -> 890 | N165: ='Operating-Overhead Cost'!$C$8/12 -> 890 | O165: 10680
B166: Transportation Costs of Fingerlings | C166: ='Operating-Overhead Cost'!$C$9/12 -> 0 | D166: ='Operating-Overhead Cost'!$C$9/12 -> 0 | E166: ='Operating-Overhead Cost'!$C$9/12 -> 0 | F166: ='Operating-Overhead Cost'!$C$9/12 -> 0 | G166: ='Operating-Overhead Cost'!$C$9/12 -> 0 | H166: ='Operating-Overhead Cost'!$C$9/12 -> 0 | I166: ='Operating-Overhead Cost'!$C$9/12 -> 0 | J166: ='Operating-Overhead Cost'!$C$9/12 -> 0 | K166: ='Operating-Overhead Cost'!$C$9/12 -> 0 | L166: ='Operating-Overhead Cost'!$C$9/12 -> 0 | M166: ='Operating-Overhead Cost'!$C$9/12 -> 0 | N166: ='Operating-Overhead Cost'!$C$9/12 -> 0 | O166: 0
B167: Transportation Costs to Market | C167: ='Operating-Overhead Cost'!$C$10/12 -> 0 | D167: ='Operating-Overhead Cost'!$C$10/12 -> 0 | E167: ='Operating-Overhead Cost'!$C$10/12 -> 0 | F167: ='Operating-Overhead Cost'!$C$10/12 -> 0 | G167: ='Operating-Overhead Cost'!$C$10/12 -> 0 | H167: ='Operating-Overhead Cost'!$C$10/12 -> 0 | I167: ='Operating-Overhead Cost'!$C$10/12 -> 0 | J167: ='Operating-Overhead Cost'!$C$10/12 -> 0 | K167: ='Operating-Overhead Cost'!$C$10/12 -> 0 | L167: ='Operating-Overhead Cost'!$C$10/12 -> 0 | M167: ='Operating-Overhead Cost'!$C$10/12 -> 0 | N167: ='Operating-Overhead Cost'!$C$10/12 -> 0 | O167: 0
B168: Miscellaneous | O168: =5%*(O169+O176) -> 3007.605259
B169: Total Variable Cost | C169: =SUM(C160:C168) -> 3902.754354 | D169: 3902.754354 | E169: 3902.754354 | F169: 3902.754354 | G169: 3902.754354 | H169: 3902.754354 | I169: 3902.754354 | J169: 3902.754354 | K169: 3902.754354 | L169: 3902.754354 | M169: 3902.754354 | N169: 3902.754354 | O169: =SUM(O160:O167) -> 46833.05224
B171: Overhead Costs
B172: Repair & maintenance | C172: ='Enter Operation Parameters Here'!$D$70/12 -> 24.75143333 | D172: ='Enter Operation Parameters Here'!$D$70/12 -> 24.75143333 | E172: ='Enter Operation Parameters Here'!$D$70/12 -> 24.75143333 | F172: ='Enter Operation Parameters Here'!$D$70/12 -> 24.75143333 | G172: ='Enter Operation Parameters Here'!$D$70/12 -> 24.75143333 | H172: ='Enter Operation Parameters Here'!$D$70/12 -> 24.75143333 | I172: ='Enter Operation Parameters Here'!$D$70/12 -> 24.75143333 | J172: ='Enter Operation Parameters Here'!$D$70/12 -> 24.75143333 | K172: ='Enter Operation Parameters Here'!$D$70/12 -> 24.75143333 | L172: ='Enter Operation Parameters Here'!$D$70/12 -> 24.75143333 | M172: ='Enter Operation Parameters Here'!$D$70/12 -> 24.75143333 | N172: ='Enter Operation Parameters Here'!$D$70/12 -> 24.75143333 | O172: =SUM(C172:N172) -> 297.0172
B173: Insurance | C173: ='Enter Operation Parameters Here'!$F$71/12 -> 148.5086 | D173: ='Enter Operation Parameters Here'!$F$71/12 -> 148.5086 | E173: ='Enter Operation Parameters Here'!$F$71/12 -> 148.5086 | F173: ='Enter Operation Parameters Here'!$F$71/12 -> 148.5086 | G173: ='Enter Operation Parameters Here'!$F$71/12 -> 148.5086 | H173: ='Enter Operation Parameters Here'!$F$71/12 -> 148.5086 | I173: ='Enter Operation Parameters Here'!$F$71/12 -> 148.5086 | J173: ='Enter Operation Parameters Here'!$F$71/12 -> 148.5086 | K173: ='Enter Operation Parameters Here'!$F$71/12 -> 148.5086 | L173: ='Enter Operation Parameters Here'!$F$71/12 -> 148.5086 | M173: ='Enter Operation Parameters Here'!$F$71/12 -> 148.5086 | N173: ='Enter Operation Parameters Here'!$F$71/12 -> 148.5086 | O173: =SUM(C173:N173) -> 1782.1032
B174: Adminstration/Management - legal fees, professional services, etc. | C174: ='Operating-Overhead Cost'!$C$16/12 -> 936.6610449 | D174: ='Operating-Overhead Cost'!$C$16/12 -> 936.6610449 | E174: ='Operating-Overhead Cost'!$C$16/12 -> 936.6610449 | F174: ='Operating-Overhead Cost'!$C$16/12 -> 936.6610449 | G174: ='Operating-Overhead Cost'!$C$16/12 -> 936.6610449 | H174: ='Operating-Overhead Cost'!$C$16/12 -> 936.6610449 | I174: ='Operating-Overhead Cost'!$C$16/12 -> 936.6610449 | J174: ='Operating-Overhead Cost'!$C$16/12 -> 936.6610449 | K174: ='Operating-Overhead Cost'!$C$16/12 -> 936.6610449 | L174: ='Operating-Overhead Cost'!$C$16/12 -> 936.6610449 | M174: ='Operating-Overhead Cost'!$C$16/12 -> 936.6610449 | N174: ='Operating-Overhead Cost'!$C$16/12 -> 936.6610449 | O174: =SUM(C174:N174) -> 11239.93254
B175: Other | C175: ='Enter Operation Parameters Here'!$G$73/12 -> 0 | D175: ='Enter Operation Parameters Here'!$G$73/12 -> 0 | E175: ='Enter Operation Parameters Here'!$G$73/12 -> 0 | F175: ='Enter Operation Parameters Here'!$G$73/12 -> 0 | G175: ='Enter Operation Parameters Here'!$G$73/12 -> 0 | H175: ='Enter Operation Parameters Here'!$G$73/12 -> 0 | I175: ='Enter Operation Parameters Here'!$G$73/12 -> 0 | J175: ='Enter Operation Parameters Here'!$G$73/12 -> 0 | K175: ='Enter Operation Parameters Here'!$G$73/12 -> 0 | L175: ='Enter Operation Parameters Here'!$G$73/12 -> 0 | M175: ='Enter Operation Parameters Here'!$G$73/12 -> 0 | N175: ='Enter Operation Parameters Here'!$G$73/12 -> 0 | O175: =SUM(C175:N175) -> 0
B176: Total Overhead Costs | C176: =SUM(C172:C175) -> 1109.921078 | D176: =SUM(D172:D175) -> 1109.921078 | E176: =SUM(E172:E175) -> 1109.921078 | F176: =SUM(F172:F175) -> 1109.921078 | G176: =SUM(G172:G175) -> 1109.921078 | H176: =SUM(H172:H175) -> 1109.921078 | I176: =SUM(I172:I175) -> 1109.921078 | J176: =SUM(J172:J175) -> 1109.921078 | K176: =SUM(K172:K175) -> 1109.921078 | L176: =SUM(L172:L175) -> 1109.921078 | M176: =SUM(M172:M175) -> 1109.921078 | N176: =SUM(N172:N175) -> 1109.921078 | O176: =SUM(O172:O175) -> 13319.05294
B178: Loan | C178: ='Enter Operation Parameters Here'!$R$83/12 -> 500.4888889 | D178: ='Enter Operation Parameters Here'!$R$83/12 -> 500.4888889 | E178: ='Enter Operation Parameters Here'!$R$83/12 -> 500.4888889 | F178: ='Enter Operation Parameters Here'!$R$83/12 -> 500.4888889 | G178: ='Enter Operation Parameters Here'!$R$83/12 -> 500.4888889 | H178: ='Enter Operation Parameters Here'!$R$83/12 -> 500.4888889 | I178: ='Enter Operation Parameters Here'!$R$83/12 -> 500.4888889 | J178: ='Enter Operation Parameters Here'!$R$83/12 -> 500.4888889 | K178: ='Enter Operation Parameters Here'!$R$83/12 -> 500.4888889 | L178: ='Enter Operation Parameters Here'!$R$83/12 -> 500.4888889 | M178: ='Enter Operation Parameters Here'!$R$83/12 -> 500.4888889 | N178: ='Enter Operation Parameters Here'!$R$83/12 -> 500.4888889 | O178: =SUM(C178:N178) -> 6005.866667
B180: Cash Flow | C180: =C157-SUM(C169,C176,C178)+N150 -> -77898.46617 | D180: =D157-SUM(D169,D176,D178)+C180 -> -78878.21721 | E180: -79857.96824 | F180: -80837.71927 | G180: -81817.4703 | H180: -82797.22134 | I180: -83776.97237 | J180: -84756.7234 | K180: -85736.47444 | L180: -86716.22547 | M180: -87695.9765 | N180: -88675.72754 | O180: =O157-SUM(O168,O169,O176,O178) -> -14764.61766
B182: YEAR 7 | C182: YEAR 7
C183: January | D183: February | E183: March | F183: April | G183: May | H183: June | I183: July | J183: August | K183: September | L183: October | M183: November | N183: December
B184: Gross Receipts: | O184: =SUM(C184:N184) -> 0
B185: Shrimp sale | C185: =('Enter Operation Parameters Here'!$D$86*'Enter Operation Parameters Here'!$E$86)/12 -> 4533.413288 | D185: =('Enter Operation Parameters Here'!$D$86*'Enter Operation Parameters Here'!$E$86)/12 -> 4533.413288 | E185: =('Enter Operation Parameters Here'!$D$86*'Enter Operation Parameters Here'!$E$86)/12 -> 4533.413288 | F185: =('Enter Operation Parameters Here'!$D$86*'Enter Operation Parameters Here'!$E$86)/12 -> 4533.413288 | G185: =('Enter Operation Parameters Here'!$D$86*'Enter Operation Parameters Here'!$E$86)/12 -> 4533.413288 | H185: =('Enter Operation Parameters Here'!$D$86*'Enter Operation Parameters Here'!$E$86)/12 -> 4533.413288 | I185: =('Enter Operation Parameters Here'!$D$86*'Enter Operation Parameters Here'!$E$86)/12 -> 4533.413288 | J185: =('Enter Operation Parameters Here'!$D$86*'Enter Operation Parameters Here'!$E$86)/12 -> 4533.413288 | K185: =('Enter Operation Parameters Here'!$D$86*'Enter Operation Parameters Here'!$E$86)/12 -> 4533.413288 | L185: =('Enter Operation Parameters Here'!$D$86*'Enter Operation Parameters Here'!$E$86)/12 -> 4533.413288 | M185: =('Enter Operation Parameters Here'!$D$86*'Enter Operation Parameters Here'!$E$86)/12 -> 4533.413288 | N185: =('Enter Operation Parameters Here'!$D$86*'Enter Operation Parameters Here'!$E$86)/12 -> 4533.413288 | O185: =SUM(C185:N185) -> 54400.95945
B186: Miscellaneous Receipts | O186: =SUM(C186:N186) -> 0
B187: Total Receipts | C187: =SUM(C185:C186) -> 4533.413288 | D187: 4533.413288 | E187: 4533.413288 | F187: 4533.413288 | G187: 4533.413288 | H187: 4533.413288 | I187: 4533.413288 | J187: 4533.413288 | K187: 4533.413288 | L187: 4533.413288 | M187: 4533.413288 | N187: 4533.413288 | O187: =SUM(C187:N187) -> 54400.95945
B189: Variable Inputs:
B190: PLs | C190: =('Enter Operation Parameters Here'!$D$55*'Enter Operation Parameters Here'!$D$42)/12 -> 2040 | D190: =('Enter Operation Parameters Here'!$D$55*'Enter Operation Parameters Here'!$D$42)/12 -> 2040 | E190: =('Enter Operation Parameters Here'!$D$55*'Enter Operation Parameters Here'!$D$42)/12 -> 2040 | F190: =('Enter Operation Parameters Here'!$D$55*'Enter Operation Parameters Here'!$D$42)/12 -> 2040 | G190: =('Enter Operation Parameters Here'!$D$55*'Enter Operation Parameters Here'!$D$42)/12 -> 2040 | H190: =('Enter Operation Parameters Here'!$D$55*'Enter Operation Parameters Here'!$D$42)/12 -> 2040 | I190: =('Enter Operation Parameters Here'!$D$55*'Enter Operation Parameters Here'!$D$42)/12 -> 2040 | J190: =('Enter Operation Parameters Here'!$D$55*'Enter Operation Parameters Here'!$D$42)/12 -> 2040 | K190: =('Enter Operation Parameters Here'!$D$55*'Enter Operation Parameters Here'!$D$42)/12 -> 2040 | L190: =('Enter Operation Parameters Here'!$D$55*'Enter Operation Parameters Here'!$D$42)/12 -> 2040 | M190: =('Enter Operation Parameters Here'!$D$55*'Enter Operation Parameters Here'!$D$42)/12 -> 2040 | N190: =('Enter Operation Parameters Here'!$D$55*'Enter Operation Parameters Here'!$D$42)/12 -> 2040 | O190: =SUM(C190:N190) -> 24480
B191: Feed | C191: ='Operating-Overhead Cost'!$C$5/12 -> 498.3270874 | D191: ='Operating-Overhead Cost'!$C$5/12 -> 498.3270874 | E191: ='Operating-Overhead Cost'!$C$5/12 -> 498.3270874 | F191: ='Operating-Overhead Cost'!$C$5/12 -> 498.3270874 | G191: ='Operating-Overhead Cost'!$C$5/12 -> 498.3270874 | H191: ='Operating-Overhead Cost'!$C$5/12 -> 498.3270874 | I191: ='Operating-Overhead Cost'!$C$5/12 -> 498.3270874 | J191: ='Operating-Overhead Cost'!$C$5/12 -> 498.3270874 | K191: ='Operating-Overhead Cost'!$C$5/12 -> 498.3270874 | L191: ='Operating-Overhead Cost'!$C$5/12 -> 498.3270874 | M191: ='Operating-Overhead Cost'!$C$5/12 -> 498.3270874 | N191: ='Operating-Overhead Cost'!$C$5/12 -> 498.3270874 | O191: 5979.925049
B192: Chemicals | C192: ='Operating-Overhead Cost'!$C$11/12 -> 66.66666667 | D192: ='Operating-Overhead Cost'!$C$11/12 -> 66.66666667 | E192: ='Operating-Overhead Cost'!$C$11/12 -> 66.66666667 | F192: ='Operating-Overhead Cost'!$C$11/12 -> 66.66666667 | G192: ='Operating-Overhead Cost'!$C$11/12 -> 66.66666667 | H192: ='Operating-Overhead Cost'!$C$11/12 -> 66.66666667 | I192: ='Operating-Overhead Cost'!$C$11/12 -> 66.66666667 | J192: ='Operating-Overhead Cost'!$C$11/12 -> 66.66666667 | K192: ='Operating-Overhead Cost'!$C$11/12 -> 66.66666667 | L192: ='Operating-Overhead Cost'!$C$11/12 -> 66.66666667 | M192: ='Operating-Overhead Cost'!$C$11/12 -> 66.66666667 | N192: ='Operating-Overhead Cost'!$C$11/12 -> 66.66666667 | O192: 800
B193: Electricity | C193: ='Operating-Overhead Cost'!$C$6/12 -> 34.00059966 | D193: ='Operating-Overhead Cost'!$C$6/12 -> 34.00059966 | E193: ='Operating-Overhead Cost'!$C$6/12 -> 34.00059966 | F193: ='Operating-Overhead Cost'!$C$6/12 -> 34.00059966 | G193: ='Operating-Overhead Cost'!$C$6/12 -> 34.00059966 | H193: ='Operating-Overhead Cost'!$C$6/12 -> 34.00059966 | I193: ='Operating-Overhead Cost'!$C$6/12 -> 34.00059966 | J193: ='Operating-Overhead Cost'!$C$6/12 -> 34.00059966 | K193: ='Operating-Overhead Cost'!$C$6/12 -> 34.00059966 | L193: ='Operating-Overhead Cost'!$C$6/12 -> 34.00059966 | M193: ='Operating-Overhead Cost'!$C$6/12 -> 34.00059966 | N193: ='Operating-Overhead Cost'!$C$6/12 -> 34.00059966 | O193: 408.0071959
B194: Oxygen | C194: ='Operating-Overhead Cost'!$C$7/12 -> 373.76 | D194: ='Operating-Overhead Cost'!$C$7/12 -> 373.76 | E194: ='Operating-Overhead Cost'!$C$7/12 -> 373.76 | F194: ='Operating-Overhead Cost'!$C$7/12 -> 373.76 | G194: ='Operating-Overhead Cost'!$C$7/12 -> 373.76 | H194: ='Operating-Overhead Cost'!$C$7/12 -> 373.76 | I194: ='Operating-Overhead Cost'!$C$7/12 -> 373.76 | J194: ='Operating-Overhead Cost'!$C$7/12 -> 373.76 | K194: ='Operating-Overhead Cost'!$C$7/12 -> 373.76 | L194: ='Operating-Overhead Cost'!$C$7/12 -> 373.76 | M194: ='Operating-Overhead Cost'!$C$7/12 -> 373.76 | N194: ='Operating-Overhead Cost'!$C$7/12 -> 373.76 | O194: 4485.12
B195: Hired Labor - Hours | C195: ='Operating-Overhead Cost'!$C$8/12 -> 890 | D195: ='Operating-Overhead Cost'!$C$8/12 -> 890 | E195: ='Operating-Overhead Cost'!$C$8/12 -> 890 | F195: ='Operating-Overhead Cost'!$C$8/12 -> 890 | G195: ='Operating-Overhead Cost'!$C$8/12 -> 890 | H195: ='Operating-Overhead Cost'!$C$8/12 -> 890 | I195: ='Operating-Overhead Cost'!$C$8/12 -> 890 | J195: ='Operating-Overhead Cost'!$C$8/12 -> 890 | K195: ='Operating-Overhead Cost'!$C$8/12 -> 890 | L195: ='Operating-Overhead Cost'!$C$8/12 -> 890 | M195: ='Operating-Overhead Cost'!$C$8/12 -> 890 | N195: ='Operating-Overhead Cost'!$C$8/12 -> 890 | O195: 10680
B196: Transportation Costs of Fingerlings | C196: ='Operating-Overhead Cost'!$C$9/12 -> 0 | D196: ='Operating-Overhead Cost'!$C$9/12 -> 0 | E196: ='Operating-Overhead Cost'!$C$9/12 -> 0 | F196: ='Operating-Overhead Cost'!$C$9/12 -> 0 | G196: ='Operating-Overhead Cost'!$C$9/12 -> 0 | H196: ='Operating-Overhead Cost'!$C$9/12 -> 0 | I196: ='Operating-Overhead Cost'!$C$9/12 -> 0 | J196: ='Operating-Overhead Cost'!$C$9/12 -> 0 | K196: ='Operating-Overhead Cost'!$C$9/12 -> 0 | L196: ='Operating-Overhead Cost'!$C$9/12 -> 0 | M196: ='Operating-Overhead Cost'!$C$9/12 -> 0 | N196: ='Operating-Overhead Cost'!$C$9/12 -> 0 | O196: 0
B197: Transportation Costs to Market | C197: ='Operating-Overhead Cost'!$C$10/12 -> 0 | D197: ='Operating-Overhead Cost'!$C$10/12 -> 0 | E197: ='Operating-Overhead Cost'!$C$10/12 -> 0 | F197: ='Operating-Overhead Cost'!$C$10/12 -> 0 | G197: ='Operating-Overhead Cost'!$C$10/12 -> 0 | H197: ='Operating-Overhead Cost'!$C$10/12 -> 0 | I197: ='Operating-Overhead Cost'!$C$10/12 -> 0 | J197: ='Operating-Overhead Cost'!$C$10/12 -> 0 | K197: ='Operating-Overhead Cost'!$C$10/12 -> 0 | L197: ='Operating-Overhead Cost'!$C$10/12 -> 0 | M197: ='Operating-Overhead Cost'!$C$10/12 -> 0 | N197: ='Operating-Overhead Cost'!$C$10/12 -> 0 | O197: 0
B198: Miscellaneous | O198: =5%*(O199+O206) -> 3007.605259
B199: Total Variable Cost | C199: =SUM(C190:C198) -> 3902.754354 | D199: 3902.754354 | E199: 3902.754354 | F199: 3902.754354 | G199: 3902.754354 | H199: 3902.754354 | I199: 3902.754354 | J199: 3902.754354 | K199: 3902.754354 | L199: 3902.754354 | M199: 3902.754354 | N199: 3902.754354 | O199: =SUM(O190:O197) -> 46833.05224
B201: Overhead Costs
B202: Repair & maintenance | C202: ='Enter Operation Parameters Here'!$D$70/12 -> 24.75143333 | D202: ='Enter Operation Parameters Here'!$D$70/12 -> 24.75143333 | E202: ='Enter Operation Parameters Here'!$D$70/12 -> 24.75143333 | F202: ='Enter Operation Parameters Here'!$D$70/12 -> 24.75143333 | G202: ='Enter Operation Parameters Here'!$D$70/12 -> 24.75143333 | H202: ='Enter Operation Parameters Here'!$D$70/12 -> 24.75143333 | I202: ='Enter Operation Parameters Here'!$D$70/12 -> 24.75143333 | J202: ='Enter Operation Parameters Here'!$D$70/12 -> 24.75143333 | K202: ='Enter Operation Parameters Here'!$D$70/12 -> 24.75143333 | L202: ='Enter Operation Parameters Here'!$D$70/12 -> 24.75143333 | M202: ='Enter Operation Parameters Here'!$D$70/12 -> 24.75143333 | N202: ='Enter Operation Parameters Here'!$D$70/12 -> 24.75143333 | O202: =SUM(C202:N202) -> 297.0172
B203: Insurance | C203: ='Enter Operation Parameters Here'!$F$71/12 -> 148.5086 | D203: ='Enter Operation Parameters Here'!$F$71/12 -> 148.5086 | E203: ='Enter Operation Parameters Here'!$F$71/12 -> 148.5086 | F203: ='Enter Operation Parameters Here'!$F$71/12 -> 148.5086 | G203: ='Enter Operation Parameters Here'!$F$71/12 -> 148.5086 | H203: ='Enter Operation Parameters Here'!$F$71/12 -> 148.5086 | I203: ='Enter Operation Parameters Here'!$F$71/12 -> 148.5086 | J203: ='Enter Operation Parameters Here'!$F$71/12 -> 148.5086 | K203: ='Enter Operation Parameters Here'!$F$71/12 -> 148.5086 | L203: ='Enter Operation Parameters Here'!$F$71/12 -> 148.5086 | M203: ='Enter Operation Parameters Here'!$F$71/12 -> 148.5086 | N203: ='Enter Operation Parameters Here'!$F$71/12 -> 148.5086 | O203: =SUM(C203:N203) -> 1782.1032
B204: Adminstration/Management - legal fees, professional services, etc. | C204: ='Operating-Overhead Cost'!$C$16/12 -> 936.6610449 | D204: ='Operating-Overhead Cost'!$C$16/12 -> 936.6610449 | E204: ='Operating-Overhead Cost'!$C$16/12 -> 936.6610449 | F204: ='Operating-Overhead Cost'!$C$16/12 -> 936.6610449 | G204: ='Operating-Overhead Cost'!$C$16/12 -> 936.6610449 | H204: ='Operating-Overhead Cost'!$C$16/12 -> 936.6610449 | I204: ='Operating-Overhead Cost'!$C$16/12 -> 936.6610449 | J204: ='Operating-Overhead Cost'!$C$16/12 -> 936.6610449 | K204: ='Operating-Overhead Cost'!$C$16/12 -> 936.6610449 | L204: ='Operating-Overhead Cost'!$C$16/12 -> 936.6610449 | M204: ='Operating-Overhead Cost'!$C$16/12 -> 936.6610449 | N204: ='Operating-Overhead Cost'!$C$16/12 -> 936.6610449 | O204: =SUM(C204:N204) -> 11239.93254
B205: Other | C205: ='Enter Operation Parameters Here'!$G$73/12 -> 0 | D205: ='Enter Operation Parameters Here'!$G$73/12 -> 0 | E205: ='Enter Operation Parameters Here'!$G$73/12 -> 0 | F205: ='Enter Operation Parameters Here'!$G$73/12 -> 0 | G205: ='Enter Operation Parameters Here'!$G$73/12 -> 0 | H205: ='Enter Operation Parameters Here'!$G$73/12 -> 0 | I205: ='Enter Operation Parameters Here'!$G$73/12 -> 0 | J205: ='Enter Operation Parameters Here'!$G$73/12 -> 0 | K205: ='Enter Operation Parameters Here'!$G$73/12 -> 0 | L205: ='Enter Operation Parameters Here'!$G$73/12 -> 0 | M205: ='Enter Operation Parameters Here'!$G$73/12 -> 0 | N205: ='Enter Operation Parameters Here'!$G$73/12 -> 0 | O205: =SUM(C205:N205) -> 0
B206: Total Overhead Costs | C206: =SUM(C202:C205) -> 1109.921078 | D206: =SUM(D202:D205) -> 1109.921078 | E206: =SUM(E202:E205) -> 1109.921078 | F206: =SUM(F202:F205) -> 1109.921078 | G206: =SUM(G202:G205) -> 1109.921078 | H206: =SUM(H202:H205) -> 1109.921078 | I206: =SUM(I202:I205) -> 1109.921078 | J206: =SUM(J202:J205) -> 1109.921078 | K206: =SUM(K202:K205) -> 1109.921078 | L206: =SUM(L202:L205) -> 1109.921078 | M206: =SUM(M202:M205) -> 1109.921078 | N206: =SUM(N202:N205) -> 1109.921078 | O206: =SUM(O202:O205) -> 13319.05294
B208: Loan | C208: ='Enter Operation Parameters Here'!$S$83/12 -> 0 | D208: ='Enter Operation Parameters Here'!$S$83/12 -> 0 | E208: ='Enter Operation Parameters Here'!$S$83/12 -> 0 | F208: ='Enter Operation Parameters Here'!$S$83/12 -> 0 | G208: ='Enter Operation Parameters Here'!$S$83/12 -> 0 | H208: ='Enter Operation Parameters Here'!$S$83/12 -> 0 | I208: ='Enter Operation Parameters Here'!$S$83/12 -> 0 | J208: ='Enter Operation Parameters Here'!$S$83/12 -> 0 | K208: ='Enter Operation Parameters Here'!$S$83/12 -> 0 | L208: ='Enter Operation Parameters Here'!$S$83/12 -> 0 | M208: ='Enter Operation Parameters Here'!$S$83/12 -> 0 | N208: ='Enter Operation Parameters Here'!$S$83/12 -> 0 | O208: =SUM(C208:N208) -> 0
B210: Cash Flow | C210: =C187-SUM(C199,C206,C208)+N180 -> -89154.98968 | D210: =D187-SUM(D199,D206,D208)+C210 -> -89634.25182 | E210: -90113.51397 | F210: -90592.77611 | G210: -91072.03826 | H210: -91551.3004 | I210: -92030.56255 | J210: -92509.82469 | K210: -92989.08683 | L210: -93468.34898 | M210: -93947.61112 | N210: -94426.87327 | O210: =O187-SUM(O198,O199,O206,O208) -> -8758.75099
B212: YEAR 8 | C212: YEAR 8
C213: January | D213: February | E213: March | F213: April | G213: May | H213: June | I213: July | J213: August | K213: September | L213: October | M213: November | N213: December
B214: Gross Receipts: | O214: =SUM(C214:N214) -> 0
B215: Shrimp sale | C215: =('Enter Operation Parameters Here'!$D$86*'Enter Operation Parameters Here'!$E$86)/12 -> 4533.413288 | D215: =('Enter Operation Parameters Here'!$D$86*'Enter Operation Parameters Here'!$E$86)/12 -> 4533.413288 | E215: =('Enter Operation Parameters Here'!$D$86*'Enter Operation Parameters Here'!$E$86)/12 -> 4533.413288 | F215: =('Enter Operation Parameters Here'!$D$86*'Enter Operation Parameters Here'!$E$86)/12 -> 4533.413288 | G215: =('Enter Operation Parameters Here'!$D$86*'Enter Operation Parameters Here'!$E$86)/12 -> 4533.413288 | H215: =('Enter Operation Parameters Here'!$D$86*'Enter Operation Parameters Here'!$E$86)/12 -> 4533.413288 | I215: =('Enter Operation Parameters Here'!$D$86*'Enter Operation Parameters Here'!$E$86)/12 -> 4533.413288 | J215: =('Enter Operation Parameters Here'!$D$86*'Enter Operation Parameters Here'!$E$86)/12 -> 4533.413288 | K215: =('Enter Operation Parameters Here'!$D$86*'Enter Operation Parameters Here'!$E$86)/12 -> 4533.413288 | L215: =('Enter Operation Parameters Here'!$D$86*'Enter Operation Parameters Here'!$E$86)/12 -> 4533.413288 | M215: =('Enter Operation Parameters Here'!$D$86*'Enter Operation Parameters Here'!$E$86)/12 -> 4533.413288 | N215: =('Enter Operation Parameters Here'!$D$86*'Enter Operation Parameters Here'!$E$86)/12 -> 4533.413288 | O215: =SUM(C215:N215) -> 54400.95945
B216: Miscellaneous Receipts | O216: =SUM(C216:N216) -> 0
B217: Total Receipts | C217: =SUM(C215:C216) -> 4533.413288 | D217: 4533.413288 | E217: 4533.413288 | F217: 4533.413288 | G217: 4533.413288 | H217: 4533.413288 | I217: 4533.413288 | J217: 4533.413288 | K217: 4533.413288 | L217: 4533.413288 | M217: 4533.413288 | N217: 4533.413288 | O217: =SUM(C217:N217) -> 54400.95945
B219: Variable Inputs:
B220: PLs | C220: =('Enter Operation Parameters Here'!$D$55*'Enter Operation Parameters Here'!$D$42)/12 -> 2040 | D220: =('Enter Operation Parameters Here'!$D$55*'Enter Operation Parameters Here'!$D$42)/12 -> 2040 | E220: =('Enter Operation Parameters Here'!$D$55*'Enter Operation Parameters Here'!$D$42)/12 -> 2040 | F220: =('Enter Operation Parameters Here'!$D$55*'Enter Operation Parameters Here'!$D$42)/12 -> 2040 | G220: =('Enter Operation Parameters Here'!$D$55*'Enter Operation Parameters Here'!$D$42)/12 -> 2040 | H220: =('Enter Operation Parameters Here'!$D$55*'Enter Operation Parameters Here'!$D$42)/12 -> 2040 | I220: =('Enter Operation Parameters Here'!$D$55*'Enter Operation Parameters Here'!$D$42)/12 -> 2040 | J220: =('Enter Operation Parameters Here'!$D$55*'Enter Operation Parameters Here'!$D$42)/12 -> 2040 | K220: =('Enter Operation Parameters Here'!$D$55*'Enter Operation Parameters Here'!$D$42)/12 -> 2040 | L220: =('Enter Operation Parameters Here'!$D$55*'Enter Operation Parameters Here'!$D$42)/12 -> 2040 | M220: =('Enter Operation Parameters Here'!$D$55*'Enter Operation Parameters Here'!$D$42)/12 -> 2040 | N220: =('Enter Operation Parameters Here'!$D$55*'Enter Operation Parameters Here'!$D$42)/12 -> 2040 | O220: =SUM(C220:N220) -> 24480
B221: Feed | C221: ='Operating-Overhead Cost'!$C$5/12 -> 498.3270874 | D221: ='Operating-Overhead Cost'!$C$5/12 -> 498.3270874 | E221: ='Operating-Overhead Cost'!$C$5/12 -> 498.3270874 | F221: ='Operating-Overhead Cost'!$C$5/12 -> 498.3270874 | G221: ='Operating-Overhead Cost'!$C$5/12 -> 498.3270874 | H221: ='Operating-Overhead Cost'!$C$5/12 -> 498.3270874 | I221: ='Operating-Overhead Cost'!$C$5/12 -> 498.3270874 | J221: ='Operating-Overhead Cost'!$C$5/12 -> 498.3270874 | K221: ='Operating-Overhead Cost'!$C$5/12 -> 498.3270874 | L221: ='Operating-Overhead Cost'!$C$5/12 -> 498.3270874 | M221: ='Operating-Overhead Cost'!$C$5/12 -> 498.3270874 | N221: ='Operating-Overhead Cost'!$C$5/12 -> 498.3270874 | O221: 5979.925049
B222: Chemicals | C222: ='Operating-Overhead Cost'!$C$11/12 -> 66.66666667 | D222: ='Operating-Overhead Cost'!$C$11/12 -> 66.66666667 | E222: ='Operating-Overhead Cost'!$C$11/12 -> 66.66666667 | F222: ='Operating-Overhead Cost'!$C$11/12 -> 66.66666667 | G222: ='Operating-Overhead Cost'!$C$11/12 -> 66.66666667 | H222: ='Operating-Overhead Cost'!$C$11/12 -> 66.66666667 | I222: ='Operating-Overhead Cost'!$C$11/12 -> 66.66666667 | J222: ='Operating-Overhead Cost'!$C$11/12 -> 66.66666667 | K222: ='Operating-Overhead Cost'!$C$11/12 -> 66.66666667 | L222: ='Operating-Overhead Cost'!$C$11/12 -> 66.66666667 | M222: ='Operating-Overhead Cost'!$C$11/12 -> 66.66666667 | N222: ='Operating-Overhead Cost'!$C$11/12 -> 66.66666667 | O222: 800
B223: Electricity | C223: ='Operating-Overhead Cost'!$C$6/12 -> 34.00059966 | D223: ='Operating-Overhead Cost'!$C$6/12 -> 34.00059966 | E223: ='Operating-Overhead Cost'!$C$6/12 -> 34.00059966 | F223: ='Operating-Overhead Cost'!$C$6/12 -> 34.00059966 | G223: ='Operating-Overhead Cost'!$C$6/12 -> 34.00059966 | H223: ='Operating-Overhead Cost'!$C$6/12 -> 34.00059966 | I223: ='Operating-Overhead Cost'!$C$6/12 -> 34.00059966 | J223: ='Operating-Overhead Cost'!$C$6/12 -> 34.00059966 | K223: ='Operating-Overhead Cost'!$C$6/12 -> 34.00059966 | L223: ='Operating-Overhead Cost'!$C$6/12 -> 34.00059966 | M223: ='Operating-Overhead Cost'!$C$6/12 -> 34.00059966 | N223: ='Operating-Overhead Cost'!$C$6/12 -> 34.00059966 | O223: 408.0071959
B224: Oxygen | C224: ='Operating-Overhead Cost'!$C$7/12 -> 373.76 | D224: ='Operating-Overhead Cost'!$C$7/12 -> 373.76 | E224: ='Operating-Overhead Cost'!$C$7/12 -> 373.76 | F224: ='Operating-Overhead Cost'!$C$7/12 -> 373.76 | G224: ='Operating-Overhead Cost'!$C$7/12 -> 373.76 | H224: ='Operating-Overhead Cost'!$C$7/12 -> 373.76 | I224: ='Operating-Overhead Cost'!$C$7/12 -> 373.76 | J224: ='Operating-Overhead Cost'!$C$7/12 -> 373.76 | K224: ='Operating-Overhead Cost'!$C$7/12 -> 373.76 | L224: ='Operating-Overhead Cost'!$C$7/12 -> 373.76 | M224: ='Operating-Overhead Cost'!$C$7/12 -> 373.76 | N224: ='Operating-Overhead Cost'!$C$7/12 -> 373.76 | O224: 4485.12
B225: Hired Labor - Hours | C225: ='Operating-Overhead Cost'!$C$8/12 -> 890 | D225: ='Operating-Overhead Cost'!$C$8/12 -> 890 | E225: ='Operating-Overhead Cost'!$C$8/12 -> 890 | F225: ='Operating-Overhead Cost'!$C$8/12 -> 890 | G225: ='Operating-Overhead Cost'!$C$8/12 -> 890 | H225: ='Operating-Overhead Cost'!$C$8/12 -> 890 | I225: ='Operating-Overhead Cost'!$C$8/12 -> 890 | J225: ='Operating-Overhead Cost'!$C$8/12 -> 890 | K225: ='Operating-Overhead Cost'!$C$8/12 -> 890 | L225: ='Operating-Overhead Cost'!$C$8/12 -> 890 | M225: ='Operating-Overhead Cost'!$C$8/12 -> 890 | N225: ='Operating-Overhead Cost'!$C$8/12 -> 890 | O225: 10680
B226: Transportation Costs of Fingerlings | C226: ='Operating-Overhead Cost'!$C$9/12 -> 0 | D226: ='Operating-Overhead Cost'!$C$9/12 -> 0 | E226: ='Operating-Overhead Cost'!$C$9/12 -> 0 | F226: ='Operating-Overhead Cost'!$C$9/12 -> 0 | G226: ='Operating-Overhead Cost'!$C$9/12 -> 0 | H226: ='Operating-Overhead Cost'!$C$9/12 -> 0 | I226: ='Operating-Overhead Cost'!$C$9/12 -> 0 | J226: ='Operating-Overhead Cost'!$C$9/12 -> 0 | K226: ='Operating-Overhead Cost'!$C$9/12 -> 0 | L226: ='Operating-Overhead Cost'!$C$9/12 -> 0 | M226: ='Operating-Overhead Cost'!$C$9/12 -> 0 | N226: ='Operating-Overhead Cost'!$C$9/12 -> 0 | O226: 0
B227: Transportation Costs to Market | C227: ='Operating-Overhead Cost'!$C$10/12 -> 0 | D227: ='Operating-Overhead Cost'!$C$10/12 -> 0 | E227: ='Operating-Overhead Cost'!$C$10/12 -> 0 | F227: ='Operating-Overhead Cost'!$C$10/12 -> 0 | G227: ='Operating-Overhead Cost'!$C$10/12 -> 0 | H227: ='Operating-Overhead Cost'!$C$10/12 -> 0 | I227: ='Operating-Overhead Cost'!$C$10/12 -> 0 | J227: ='Operating-Overhead Cost'!$C$10/12 -> 0 | K227: ='Operating-Overhead Cost'!$C$10/12 -> 0 | L227: ='Operating-Overhead Cost'!$C$10/12 -> 0 | M227: ='Operating-Overhead Cost'!$C$10/12 -> 0 | N227: ='Operating-Overhead Cost'!$C$10/12 -> 0 | O227: 0
B228: Miscellaneous | O228: =5%*(O229+O236) -> 3007.605259
B229: Total Variable Cost | C229: =SUM(C220:C228) -> 3902.754354 | D229: 3902.754354 | E229: 3902.754354 | F229: 3902.754354 | G229: 3902.754354 | H229: 3902.754354 | I229: 3902.754354 | J229: 3902.754354 | K229: 3902.754354 | L229: 3902.754354 | M229: 3902.754354 | N229: 3902.754354 | O229: =SUM(O220:O227) -> 46833.05224
B231: Overhead Costs
B232: Repair & maintenance | C232: ='Enter Operation Parameters Here'!$D$70/12 -> 24.75143333 | D232: ='Enter Operation Parameters Here'!$D$70/12 -> 24.75143333 | E232: ='Enter Operation Parameters Here'!$D$70/12 -> 24.75143333 | F232: ='Enter Operation Parameters Here'!$D$70/12 -> 24.75143333 | G232: ='Enter Operation Parameters Here'!$D$70/12 -> 24.75143333 | H232: ='Enter Operation Parameters Here'!$D$70/12 -> 24.75143333 | I232: ='Enter Operation Parameters Here'!$D$70/12 -> 24.75143333 | J232: ='Enter Operation Parameters Here'!$D$70/12 -> 24.75143333 | K232: ='Enter Operation Parameters Here'!$D$70/12 -> 24.75143333 | L232: ='Enter Operation Parameters Here'!$D$70/12 -> 24.75143333 | M232: ='Enter Operation Parameters Here'!$D$70/12 -> 24.75143333 | N232: ='Enter Operation Parameters Here'!$D$70/12 -> 24.75143333 | O232: =SUM(C232:N232) -> 297.0172
B233: Insurance | C233: ='Enter Operation Parameters Here'!$F$71/12 -> 148.5086 | D233: ='Enter Operation Parameters Here'!$F$71/12 -> 148.5086 | E233: ='Enter Operation Parameters Here'!$F$71/12 -> 148.5086 | F233: ='Enter Operation Parameters Here'!$F$71/12 -> 148.5086 | G233: ='Enter Operation Parameters Here'!$F$71/12 -> 148.5086 | H233: ='Enter Operation Parameters Here'!$F$71/12 -> 148.5086 | I233: ='Enter Operation Parameters Here'!$F$71/12 -> 148.5086 | J233: ='Enter Operation Parameters Here'!$F$71/12 -> 148.5086 | K233: ='Enter Operation Parameters Here'!$F$71/12 -> 148.5086 | L233: ='Enter Operation Parameters Here'!$F$71/12 -> 148.5086 | M233: ='Enter Operation Parameters Here'!$F$71/12 -> 148.5086 | N233: ='Enter Operation Parameters Here'!$F$71/12 -> 148.5086 | O233: =SUM(C233:N233) -> 1782.1032
B234: Adminstration/Management - legal fees, professional services, etc. | C234: ='Operating-Overhead Cost'!$C$16/12 -> 936.6610449 | D234: ='Operating-Overhead Cost'!$C$16/12 -> 936.6610449 | E234: ='Operating-Overhead Cost'!$C$16/12 -> 936.6610449 | F234: ='Operating-Overhead Cost'!$C$16/12 -> 936.6610449 | G234: ='Operating-Overhead Cost'!$C$16/12 -> 936.6610449 | H234: ='Operating-Overhead Cost'!$C$16/12 -> 936.6610449 | I234: ='Operating-Overhead Cost'!$C$16/12 -> 936.6610449 | J234: ='Operating-Overhead Cost'!$C$16/12 -> 936.6610449 | K234: ='Operating-Overhead Cost'!$C$16/12 -> 936.6610449 | L234: ='Operating-Overhead Cost'!$C$16/12 -> 936.6610449 | M234: ='Operating-Overhead Cost'!$C$16/12 -> 936.6610449 | N234: ='Operating-Overhead Cost'!$C$16/12 -> 936.6610449 | O234: =SUM(C234:N234) -> 11239.93254
B235: Other | C235: ='Enter Operation Parameters Here'!$G$73/12 -> 0 | D235: ='Enter Operation Parameters Here'!$G$73/12 -> 0 | E235: ='Enter Operation Parameters Here'!$G$73/12 -> 0 | F235: ='Enter Operation Parameters Here'!$G$73/12 -> 0 | G235: ='Enter Operation Parameters Here'!$G$73/12 -> 0 | H235: ='Enter Operation Parameters Here'!$G$73/12 -> 0 | I235: ='Enter Operation Parameters Here'!$G$73/12 -> 0 | J235: ='Enter Operation Parameters Here'!$G$73/12 -> 0 | K235: ='Enter Operation Parameters Here'!$G$73/12 -> 0 | L235: ='Enter Operation Parameters Here'!$G$73/12 -> 0 | M235: ='Enter Operation Parameters Here'!$G$73/12 -> 0 | N235: ='Enter Operation Parameters Here'!$G$73/12 -> 0 | O235: =SUM(C235:N235) -> 0
B236: Total Overhead Costs | C236: =SUM(C232:C235) -> 1109.921078 | D236: =SUM(D232:D235) -> 1109.921078 | E236: =SUM(E232:E235) -> 1109.921078 | F236: =SUM(F232:F235) -> 1109.921078 | G236: =SUM(G232:G235) -> 1109.921078 | H236: =SUM(H232:H235) -> 1109.921078 | I236: =SUM(I232:I235) -> 1109.921078 | J236: =SUM(J232:J235) -> 1109.921078 | K236: =SUM(K232:K235) -> 1109.921078 | L236: =SUM(L232:L235) -> 1109.921078 | M236: =SUM(M232:M235) -> 1109.921078 | N236: =SUM(N232:N235) -> 1109.921078 | O236: =SUM(O232:O235) -> 13319.05294
B238: Loan | C238: ='Enter Operation Parameters Here'!$T$83/12 -> 0 | D238: ='Enter Operation Parameters Here'!$T$83/12 -> 0 | E238: ='Enter Operation Parameters Here'!$T$83/12 -> 0 | F238: ='Enter Operation Parameters Here'!$T$83/12 -> 0 | G238: ='Enter Operation Parameters Here'!$T$83/12 -> 0 | H238: ='Enter Operation Parameters Here'!$T$83/12 -> 0 | I238: ='Enter Operation Parameters Here'!$T$83/12 -> 0 | J238: ='Enter Operation Parameters Here'!$T$83/12 -> 0 | K238: ='Enter Operation Parameters Here'!$T$83/12 -> 0 | L238: ='Enter Operation Parameters Here'!$T$83/12 -> 0 | M238: ='Enter Operation Parameters Here'!$T$83/12 -> 0 | N238: ='Enter Operation Parameters Here'!$T$83/12 -> 0 | O238: =SUM(C238:N238) -> 0
... 51 more rows

Sheet Operating-Overhead Cost
B1: OPERATING & OVERHEAD COSTS
C3: Year1 | D3: Year2 | E3: Year3 | F3: Year4 | G3: Year5 | H3: Year6 | I3: Year7 | J3: Year8 | K3: Year9 | L3: Year10
B4: Post larvae | C4: ='Enter Operation Parameters Here'!$F$55 -> 24480 | D4: ='Enter Operation Parameters Here'!$F$55 -> 24480 | E4: ='Enter Operation Parameters Here'!$F$55 -> 24480 | F4: ='Enter Operation Parameters Here'!$F$55 -> 24480 | G4: ='Enter Operation Parameters Here'!$F$55 -> 24480 | H4: ='Enter Operation Parameters Here'!$F$55 -> 24480 | I4: ='Enter Operation Parameters Here'!$F$55 -> 24480 | J4: ='Enter Operation Parameters Here'!$F$55 -> 24480 | K4: ='Enter Operation Parameters Here'!$F$55 -> 24480 | L4: ='Enter Operation Parameters Here'!$F$55 -> 24480
B5: Feed | C5: ='Enter Operation Parameters Here'!$F$56 -> 5979.925049 | D5: ='Enter Operation Parameters Here'!$F$56 -> 5979.925049 | E5: ='Enter Operation Parameters Here'!$F$56 -> 5979.925049 | F5: ='Enter Operation Parameters Here'!$F$56 -> 5979.925049 | G5: ='Enter Operation Parameters Here'!$F$56 -> 5979.925049 | H5: ='Enter Operation Parameters Here'!$F$56 -> 5979.925049 | I5: ='Enter Operation Parameters Here'!$F$56 -> 5979.925049 | J5: ='Enter Operation Parameters Here'!$F$56 -> 5979.925049 | K5: ='Enter Operation Parameters Here'!$F$56 -> 5979.925049 | L5: ='Enter Operation Parameters Here'!$F$56 -> 5979.925049
B6: Electricity | C6: ='Enter Operation Parameters Here'!$F$57 -> 408.0071959 | D6: ='Enter Operation Parameters Here'!$F$57 -> 408.0071959 | E6: ='Enter Operation Parameters Here'!$F$57 -> 408.0071959 | F6: ='Enter Operation Parameters Here'!$F$57 -> 408.0071959 | G6: ='Enter Operation Parameters Here'!$F$57 -> 408.0071959 | H6: ='Enter Operation Parameters Here'!$F$57 -> 408.0071959 | I6: ='Enter Operation Parameters Here'!$F$57 -> 408.0071959 | J6: ='Enter Operation Parameters Here'!$F$57 -> 408.0071959 | K6: ='Enter Operation Parameters Here'!$F$57 -> 408.0071959 | L6: ='Enter Operation Parameters Here'!$F$57 -> 408.0071959
B7: Heating | C7: ='Enter Operation Parameters Here'!$F$58 -> 4485.12 | D7: ='Enter Operation Parameters Here'!$F$58 -> 4485.12 | E7: ='Enter Operation Parameters Here'!$F$58 -> 4485.12 | F7: ='Enter Operation Parameters Here'!$F$58 -> 4485.12 | G7: ='Enter Operation Parameters Here'!$F$58 -> 4485.12 | H7: ='Enter Operation Parameters Here'!$F$58 -> 4485.12 | I7: ='Enter Operation Parameters Here'!$F$58 -> 4485.12 | J7: ='Enter Operation Parameters Here'!$F$58 -> 4485.12 | K7: ='Enter Operation Parameters Here'!$F$58 -> 4485.12 | L7: ='Enter Operation Parameters Here'!$F$58 -> 4485.12
B8: Hired labor | C8: ='Enter Operation Parameters Here'!$F$60 -> 10680 | D8: ='Enter Operation Parameters Here'!$F$60 -> 10680 | E8: ='Enter Operation Parameters Here'!$F$60 -> 10680 | F8: ='Enter Operation Parameters Here'!$F$60 -> 10680 | G8: ='Enter Operation Parameters Here'!$F$60 -> 10680 | H8: ='Enter Operation Parameters Here'!$F$60 -> 10680 | I8: ='Enter Operation Parameters Here'!$F$60 -> 10680 | J8: ='Enter Operation Parameters Here'!$F$60 -> 10680 | K8: ='Enter Operation Parameters Here'!$F$60 -> 10680 | L8: ='Enter Operation Parameters Here'!$F$60 -> 10680
B9: Tansportation cost of PLs | C9: ='Enter Operation Parameters Here'!$F$61 -> 0 | D9: ='Enter Operation Parameters Here'!$F$61 -> 0 | E9: ='Enter Operation Parameters Here'!$F$61 -> 0 | F9: ='Enter Operation Parameters Here'!$F$61 -> 0 | G9: ='Enter Operation Parameters Here'!$F$61 -> 0 | H9: ='Enter Operation Parameters Here'!$F$61 -> 0 | I9: ='Enter Operation Parameters Here'!$F$61 -> 0 | J9: ='Enter Operation Parameters Here'!$F$61 -> 0 | K9: ='Enter Operation Parameters Here'!$F$61 -> 0 | L9: ='Enter Operation Parameters Here'!$F$61 -> 0
B10: Tansportation cost to Market | C10: ='Enter Operation Parameters Here'!$F$62 -> 0 | D10: ='Enter Operation Parameters Here'!$F$62 -> 0 | E10: ='Enter Operation Parameters Here'!$F$62 -> 0 | F10: ='Enter Operation Parameters Here'!$F$62 -> 0 | G10: ='Enter Operation Parameters Here'!$F$62 -> 0 | H10: ='Enter Operation Parameters Here'!$F$62 -> 0 | I10: ='Enter Operation Parameters Here'!$F$62 -> 0 | J10: ='Enter Operation Parameters Here'!$F$62 -> 0 | K10: ='Enter Operation Parameters Here'!$F$62 -> 0 | L10: ='Enter Operation Parameters Here'!$F$62 -> 0
B11: Chemicals | C11: ='Enter Operation Parameters Here'!$F$63 -> 800 | D11: ='Enter Operation Parameters Here'!$F$63 -> 800 | E11: ='Enter Operation Parameters Here'!$F$63 -> 800 | F11: ='Enter Operation Parameters Here'!$F$63 -> 800 | G11: ='Enter Operation Parameters Here'!$F$63 -> 800 | H11: ='Enter Operation Parameters Here'!$F$63 -> 800 | I11: ='Enter Operation Parameters Here'!$F$63 -> 800 | J11: ='Enter Operation Parameters Here'!$F$63 -> 800 | K11: ='Enter Operation Parameters Here'!$F$63 -> 800 | L11: ='Enter Operation Parameters Here'!$F$63 -> 800
B12: Total Operating Cost | C12: =SUM(C4:C11) -> 46833.05224 | D12: 46833.05224 | E12: 46833.05224 | F12: 46833.05224 | G12: 46833.05224 | H12: 46833.05224 | I12: 46833.05224 | J12: 46833.05224 | K12: 46833.05224 | L12: 46833.05224
B14: Overhead Cost
B15: Insurance | C15: ='Enter Operation Parameters Here'!$F$71 -> 1782.1032 | D15: ='Enter Operation Parameters Here'!$F$71 -> 1782.1032 | E15: ='Enter Operation Parameters Here'!$F$71 -> 1782.1032 | F15: ='Enter Operation Parameters Here'!$F$71 -> 1782.1032 | G15: ='Enter Operation Parameters Here'!$F$71 -> 1782.1032 | H15: ='Enter Operation Parameters Here'!$F$71 -> 1782.1032 | I15: ='Enter Operation Parameters Here'!$F$71 -> 1782.1032 | J15: ='Enter Operation Parameters Here'!$F$71 -> 1782.1032 | K15: ='Enter Operation Parameters Here'!$F$71 -> 1782.1032 | L15: ='Enter Operation Parameters Here'!$F$71 -> 1782.1032
B16: Adminstration, Management, etc. | C16: ='Enter Operation Parameters Here'!F72 -> 11239.93254 | D16: =0.05*'Operating-Overhead Cost'!D$12 -> 2341.652612 | E16: =0.05*'Operating-Overhead Cost'!E$12 -> 2341.652612 | F16: =0.05*'Operating-Overhead Cost'!F$12 -> 2341.652612 | G16: =0.05*'Operating-Overhead Cost'!G$12 -> 2341.652612 | H16: =0.05*'Operating-Overhead Cost'!H$12 -> 2341.652612 | I16: =0.05*'Operating-Overhead Cost'!I$12 -> 2341.652612 | J16: =0.05*'Operating-Overhead Cost'!J$12 -> 2341.652612 | K16: =0.05*'Operating-Overhead Cost'!K$12 -> 2341.652612 | L16: =0.05*'Operating-Overhead Cost'!L$12 -> 2341.652612
B17: Oxygen tank rental | C17: ='Enter Operation Parameters Here'!$F$68 -> 0 | D17: ='Enter Operation Parameters Here'!$F$68 -> 0 | E17: ='Enter Operation Parameters Here'!$F$68 -> 0 | F17: ='Enter Operation Parameters Here'!$F$68 -> 0 | G17: ='Enter Operation Parameters Here'!$F$68 -> 0 | H17: ='Enter Operation Parameters Here'!$F$68 -> 0 | I17: ='Enter Operation Parameters Here'!$F$68 -> 0 | J17: ='Enter Operation Parameters Here'!$F$68 -> 0 | K17: ='Enter Operation Parameters Here'!$F$68 -> 0 | L17: ='Enter Operation Parameters Here'!$F$68 -> 0
B18: Electrical demand charge | C18: ='Enter Operation Parameters Here'!$F$69 -> 0 | D18: ='Enter Operation Parameters Here'!$F$69 -> 0 | E18: ='Enter Operation Parameters Here'!$F$69 -> 0 | F18: ='Enter Operation Parameters Here'!$F$69 -> 0 | G18: ='Enter Operation Parameters Here'!$F$69 -> 0 | H18: ='Enter Operation Parameters Here'!$F$69 -> 0 | I18: ='Enter Operation Parameters Here'!$F$69 -> 0 | J18: ='Enter Operation Parameters Here'!$F$69 -> 0 | K18: ='Enter Operation Parameters Here'!$F$69 -> 0 | L18: ='Enter Operation Parameters Here'!$F$69 -> 0
B19: Maintenance (3% of cap inv) | C19: ='Enter Operation Parameters Here'!$F$70 -> 3564.2064 | D19: ='Enter Operation Parameters Here'!$F$70 -> 3564.2064 | E19: ='Enter Operation Parameters Here'!$F$70 -> 3564.2064 | F19: ='Enter Operation Parameters Here'!$F$70 -> 3564.2064 | G19: ='Enter Operation Parameters Here'!$F$70 -> 3564.2064 | H19: ='Enter Operation Parameters Here'!$F$70 -> 3564.2064 | I19: ='Enter Operation Parameters Here'!$F$70 -> 3564.2064 | J19: ='Enter Operation Parameters Here'!$F$70 -> 3564.2064 | K19: ='Enter Operation Parameters Here'!$F$70 -> 3564.2064 | L19: ='Enter Operation Parameters Here'!$F$70 -> 3564.2064
B20: Total Overhead Cost | C20: =SUM(C15:C19) -> 16586.24214 | D20: =SUM(D15:D19) -> 7687.962212 | E20: 7687.962212 | F20: 7687.962212 | G20: 7687.962212 | H20: 7687.962212 | I20: 7687.962212 | J20: 7687.962212 | K20: 7687.962212 | L20: 7687.962212

Sheet Income Statement
A1: INCOME STATEMENT
D3: Year1 | E3: Year2 | F3: Year3 | G3: Year4 | H3: Year5 | I3: Year6 | J3: Year7 | K3: Year8 | L3: Year9 | M3: Year10
B4: REVENUE
B5: Shrimp Sales | D5: ='Cash Flow'!$O$5 -> 36267.3063 | E5: ='Cash Flow'!$O$35 -> 54400.95945 | F5: ='Cash Flow'!$O$65 -> 54400.95945 | G5: ='Cash Flow'!$O$95 -> 54400.95945 | H5: ='Cash Flow'!$O$125 -> 54400.95945 | I5: ='Cash Flow'!$O$155 -> 54400.95945 | J5: ='Cash Flow'!O187 -> 54400.95945 | K5: ='Cash Flow'!O217 -> 54400.95945 | L5: ='Cash Flow'!O247 -> 54400.95945 | M5: ='Cash Flow'!O277 -> 54400.95945
B6: Other Income | D6: ='Cash Flow'!$O$6 -> 0 | E6: ='Cash Flow'!$O$36 -> 0 | F6: ='Cash Flow'!$O$66 -> 0 | G6: ='Cash Flow'!$O$96 -> 0 | H6: ='Cash Flow'!$O$126 -> 0 | I6: ='Cash Flow'!$O$156 -> 0 | J6: ='Cash Flow'!$O$156 -> 0 | K6: ='Cash Flow'!$O$156 -> 0 | L6: ='Cash Flow'!$O$156 -> 0 | M6: ='Cash Flow'!$O$156 -> 0
B7: Gross Revenue | D7: =SUM(D5:D6) -> 36267.3063 | E7: 54400.95945 | F7: 54400.95945 | G7: 54400.95945 | H7: 54400.95945 | I7: 54400.95945 | J7: 54400.95945 | K7: 54400.95945 | L7: 54400.95945 | M7: 54400.95945
B9: EXPENSES
B10: Operating Expenses | D10: ='Cash Flow'!$O$19+'Cash Flow'!$O$26 -> 60152.10518 | E10: ='Cash Flow'!$O$49+'Cash Flow'!$O$56 -> 60152.10518 | F10: ='Cash Flow'!$O$79+'Cash Flow'!$O$86 -> 60152.10518 | G10: ='Cash Flow'!$O$109+'Cash Flow'!$O$116 -> 60152.10518 | H10: ='Cash Flow'!$O$139+'Cash Flow'!$O$146 -> 60152.10518 | I10: ='Cash Flow'!$O$169+'Cash Flow'!$O$176 -> 60152.10518 | J10: ='Cash Flow'!O199+'Cash Flow'!O206 -> 60152.10518 | K10: ='Cash Flow'!O229+'Cash Flow'!O236 -> 60152.10518 | L10: ='Cash Flow'!O259+'Cash Flow'!O266 -> 60152.10518 | M10: ='Cash Flow'!O289+'Cash Flow'!O296 -> 60152.10518
B11: Miscellanous Expenses | D11: ='Cash Flow'!O18 -> 3007.605259 | E11: ='Cash Flow'!O48 -> 3007.605259 | F11: ='Cash Flow'!O78 -> 3007.605259 | G11: ='Cash Flow'!O108 -> 3007.605259 | H11: ='Cash Flow'!O138 -> 3007.605259 | I11: ='Cash Flow'!O168 -> 3007.605259 | J11: ='Cash Flow'!O198 -> 3007.605259 | K11: ='Cash Flow'!O228 -> 3007.605259 | L11: ='Cash Flow'!O258 -> 3007.605259 | M11: ='Cash Flow'!O288 -> 3007.605259
B12: Depreciation | D12: ='Enter Operation Parameters Here'!$I$28 -> 14850.86 | E12: ='Enter Operation Parameters Here'!$I$28 -> 14850.86 | F12: ='Enter Operation Parameters Here'!$I$28 -> 14850.86 | G12: ='Enter Operation Parameters Here'!$I$28 -> 14850.86 | H12: ='Enter Operation Parameters Here'!$I$28 -> 14850.86 | I12: ='Enter Operation Parameters Here'!$I$28 -> 14850.86 | J12: ='Enter Operation Parameters Here'!$I$28 -> 14850.86 | K12: ='Enter Operation Parameters Here'!$I$28 -> 14850.86 | L12: ='Enter Operation Parameters Here'!$I$28 -> 14850.86 | M12: ='Enter Operation Parameters Here'!$I$28 -> 14850.86
B13: Interest | D13: ='Enter Operation Parameters Here'!M$82 -> 2882.816 | E13: ='Enter Operation Parameters Here'!N$82 -> 2489.843824 | F13: ='Enter Operation Parameters Here'!O$82 -> 2065.433873 | G13: ='Enter Operation Parameters Here'!P$82 -> 1607.071126 | H13: ='Enter Operation Parameters Here'!Q$82 -> 1112.03936 | I13: ='Enter Operation Parameters Here'!R$82 -> 577.4050523 | J13: ='Enter Operation Parameters Here'!S$82 -> 0 | K13: ='Enter Operation Parameters Here'!T$82 -> 0 | L13: ='Enter Operation Parameters Here'!U$82 -> 0 | M13: ='Enter Operation Parameters Here'!V$82 -> 0
B14: Principal +interest | D14: ='Enter Operation Parameters Here'!M$84 -> 8888.682667 | E14: ='Enter Operation Parameters Here'!N$84 -> 8495.71049 | F14: ='Enter Operation Parameters Here'!O$84 -> 8071.30054 | G14: ='Enter Operation Parameters Here'!P$84 -> 7612.937793 | H14: ='Enter Operation Parameters Here'!Q$84 -> 7117.906027 | I14: ='Enter Operation Parameters Here'!R$84 -> 6583.271719 | J14: ='Enter Operation Parameters Here'!S$84 -> 0 | K14: ='Enter Operation Parameters Here'!T$84 -> 0 | L14: ='Enter Operation Parameters Here'!U$84 -> 0 | M14: ='Enter Operation Parameters Here'!V$84 -> 0
B15: Total Expenses | D15: =SUM(D10:D12) -> 78010.57044 | E15: =SUM(E10:E12) -> 78010.57044 | F15: =SUM(F10:F12) -> 78010.57044 | G15: 78010.57044 | H15: 78010.57044 | I15: 78010.57044 | J15: 78010.57044 | K15: 78010.57044 | L15: 78010.57044 | M15: 78010.57044
B16: Total Expenses with loan repayment | D16: =SUM(D10:D12)+D14 -> 86899.25311 | E16: =SUM(E10:E12)+E14 -> 86506.28093 | F16: 86081.87098 | G16: 85623.50824 | H16: 85128.47647 | I16: 84593.84216 | J16: 78010.57044 | K16: 78010.57044 | L16: 78010.57044 | M16: 78010.57044
B17: Net Farm Income from Operations | D17: =D7-D15 -> -41743.26414 | E17: -23609.61099 | F17: -23609.61099 | G17: -23609.61099 | H17: -23609.61099 | I17: -23609.61099 | J17: -23609.61099 | K17: -23609.61099 | L17: -23609.61099 | M17: -23609.61099
B18: Cummulative | D18: =D17 -> -41743.26414 | E18: =D18+E17 -> -65352.87513 | F18: =E18+F17 -> -88962.48612 | G18: =F18+G17 -> -112572.0971 | H18: -136181.7081 | I18: -159791.3191 | J18: -183400.9301 | K18: -207010.5411 | L18: -230620.1521 | M18: -254229.7631
B19: Net Income (with loan repayment) | D19: =D7-D16 -> -50631.94681 | E19: =E7-E16 -> -32105.32148 | F19: -31680.91153 | G19: -31222.54878 | H19: -30727.51702 | I19: -30192.88271 | J19: -23609.61099 | K19: -23609.61099 | L19: -23609.61099 | M19: -23609.61099
B20: Cummulative | D20: =D19 -> -50631.94681 | E20: =D20+E19 -> -82737.26829 | F20: =E20+F19 -> -114418.1798 | G20: =F20+G19 -> -145640.7286 | H20: =G20+H19 -> -176368.2456 | I20: =H20+I19 -> -206561.1283 | J20: =I20+J19 -> -230170.7393 | K20: =J20+K19 -> -253780.3503 | L20: =K20+L19 -> -277389.9613 | M20: =L20+M19 -> -300999.5723
B22: Enterprise Budget
D23: Unit | E23: Cost/Unit ($) | F23: Quantity | G23: Cost ($) | H23: % of Total cost | L23: 12 | M23: 13 | N23: 14 | O23: 15 | P23: 16
C24: Sales Receipts | D24: lb | E24: ='Enter Operation Parameters Here'!D86 -> 12 | F24: ='Enter Operation Parameters Here'!E86 -> 4533.413288 | G24: =E24*F24 -> 54400.95945 | K24: 0.6 | L24: -0.37 | M24: -0.32 | N24: -0.26 | O24: -0.21 | P24: -0.16
K25: 0.7 | L25: -0.28 | M25: -0.22 | N25: -0.16 | O25: -0.09 | P25: -0.03
C26: Variable Inputs: | K26: 0.8 | L26: -0.19 | M26: -0.12 | N26: -0.05 | O26: 0.02 | P26: 0.08
C27: PLs | D27: Number | E27: ='Enter Operation Parameters Here'!D55 -> 0.1 | F27: ='Enter Operation Parameters Here'!E55 -> 244800 | G27: =E27*F27 -> 24480 | H27: =G27/$G$56 -> 0.2842871345
C28: Feed Price | D28: lb. | E28: ='Enter Operation Parameters Here'!D56 -> 1.2 | F28: ='Enter Operation Parameters Here'!E56 -> 4983.270874 | G28: =E28*F28 -> 5979.925049 | H28: 0.06944508809
C29: Electricity | D29: kw-hr. | E29: ='Enter Operation Parameters Here'!D57 -> 0.06 | F29: ='Enter Operation Parameters Here'!E57 -> 6800.119932 | G29: 408.0071959 | H29: 0.004738202474
C30: Hired Labor | D30: Hour | E30: 10 | F30: ='Enter Operation Parameters Here'!E60 -> 1068 | G30: 10680 | H30: 0.1240272302
C31: Heating | D31: year | E31: ='Enter Operation Parameters Here'!D58 -> 8 | F31: ='Enter Operation Parameters Here'!E58 -> 560.64 | G31: =E31*F31 -> 4485.12 | H31: 0.05208586244
C32: Chemicals | D32: $ | E32: ='Enter Operation Parameters Here'!D63 -> 100 | F32: ='Enter Operation Parameters Here'!E63 -> 8 | G32: 800 | H32: 0.009290429231
C33: Insurance | D33: % | E33: ='Enter Operation Parameters Here'!D71 -> 148.5086 | F33: ='Enter Operation Parameters Here'!E71 -> 12 | G33: 1782.1032 | H33: 0.02069562958
C34: Loan + Interest | D34: % | G34: ='Enter Operation Parameters Here'!G78 -> 7794.968206 | H34: 0.09052325059
C35: Total Variable Costs (TVC) | D35: $ | G35: =SUM(G27:G34) -> 56410.12365 | H35: =SUM(H27:H34) -> 0.6550928271
C36: Cost/lb | G36: =G35/F24 -> 12.44319017
C37: Fixed Inputs:
C38: Building | D38: $ | E38: ='Enter Operation Parameters Here'!F6-'Enter Operation Parameters Here'!H6 -> 4500 | F38: =1/'Enter Operation Parameters Here'!G6 -> 0.03333333333 | G38: =E38*F38 -> 150 | H38: =G38/$G$56 -> 0.001741955481
C39: Complete Tank System | D39: $ | E39: ='Enter Operation Parameters Here'!F7-'Enter Operation Parameters Here'!H7 -> 46800 | F39: =1/'Enter Operation Parameters Here'!G7 -> 0.1 | G39: 4680 | H39: =G39/$G$56 -> 0.054349011
C40: Water Heater | D40: $ | E40: ='Enter Operation Parameters Here'!F10-'Enter Operation Parameters Here'!H10 -> 4230 | F40: =1/'Enter Operation Parameters Here'!G10 -> 0.1 | G40: 423 | H40: 0.004912314456
C41: Water Storage | D41: $ | E41: ='Enter Operation Parameters Here'!F11-'Enter Operation Parameters Here'!H11 -> 2340 | F41: =1/'Enter Operation Parameters Here'!G11 -> 0.1 | G41: 234 | H41: 0.00271745055
C42: Emergency Generator | D42: $ | E42: ='Enter Operation Parameters Here'!F12-'Enter Operation Parameters Here'!H12 -> 4050 | F42: =1/'Enter Operation Parameters Here'!G12 -> 0.06666666667 | G42: 270 | H42: 0.003135519866
C43: Purge Tank | D43: $ | E43: ='Enter Operation Parameters Here'!F13-'Enter Operation Parameters Here'!H13 -> 405 | F43: =1/'Enter Operation Parameters Here'!G13 -> 0.1 | G43: 40.5 | H43: 0.0004703279798
C44: Agitators | D44: $ | E44: ='Enter Operation Parameters Here'!F14-'Enter Operation Parameters Here'!H14 -> 4320 | F44: =1/'Enter Operation Parameters Here'!G14 -> 0.2 | G44: 864 | H44: 0.01003366357
C45: Blower | D45: $ | E45: ='Enter Operation Parameters Here'!F15-'Enter Operation Parameters Here'!H15 -> 3060 | F45: =1/'Enter Operation Parameters Here'!G15 -> 0.2 | G45: 612 | H45: 0.007107178362
C46: Monitoring Equipment | D46: $ | E46: ='Enter Operation Parameters Here'!F17-'Enter Operation Parameters Here'!H17 -> 675 | F46: =1/'Enter Operation Parameters Here'!G17 -> 0.2 | G46: 135 | H46: 0.001567759933
C47: Water Quality Equipment | D47: $ | E47: ='Enter Operation Parameters Here'!F19-'Enter Operation Parameters Here'!H19 -> 4636.8 | F47: =1/'Enter Operation Parameters Here'!G19 -> 0.2 | G47: 927.36 | H47: 0.01076946556
C48: Fish Handling Equipment | D48: $ | E48: ='Enter Operation Parameters Here'!F20-'Enter Operation Parameters Here'!H20 -> 900 | F48: =1/'Enter Operation Parameters Here'!G20 -> 0.5 | G48: 450 | H48: 0.005225866443
C49: Feed Storage | D49: $ | E49: ='Enter Operation Parameters Here'!F21-'Enter Operation Parameters Here'!H21 -> 450 | F49: =1/'Enter Operation Parameters Here'!G19 -> 0.2 | G49: 90 | H49: 0.001045173289
C50: System Set-up labor | D50: $ | E50: ='Enter Operation Parameters Here'!F22 -> 5120 | F50: 1 | G50: 5120 | H50: 0.05945874708
C51: Miscellaneous equipment | D51: $ | E51: ='Enter Operation Parameters Here'!F26-'Enter Operation Parameters Here'!H26 -> 4500 | F51: =1/'Enter Operation Parameters Here'!G26 -> 0.2 | G51: 900 | H51: 0.01045173289
C52: Maintenance | D52: $ | E52: ='Enter Operation Parameters Here'!D70 -> 297.0172 | F52: ='Enter Operation Parameters Here'!E70 -> 12 | G52: 3564.2064 | H52: 0.04139125916
C53: Management | D53: $ | E53: ='Enter Operation Parameters Here'!D72 -> 936.6610449 | F53: ='Enter Operation Parameters Here'!E72 -> 12 | G53: 11239.93254 | H53: 0.1305297473
C54: Total Fixed Costs | G54: =SUM(G38:G53) -> 29699.99894 | H54: =SUM(H38:H53) -> 0.3449071729
C56: Total Costs (TC) | D56: $ | G56: =G35+G54 -> 86110.12259 | H56: =H35+H54 -> 1
C57: Break-even price (BEP) | D57: $/lb | G57: =G56/F24 -> 18.99454498
C58: Profit Above TVC | D58: $/lb | G58: =(G24-G35)/F24 -> -0.4431901683 | H58: =G58/G57 -> -0.02333249724
C59: Profit Above TC | D59: $/lb | G59: =E24-G57 -> -6.994544976 | H59: =G59/G57 -> -0.3682396701

Sheet Module1 (hidden)

Sheet Sheet7 (hidden)

Sheet Sheet6 (hidden)

Sheet Sheet2 (hidden)

Sheet Sheet1 (hidden)

Sheet Sheet5 (hidden)

Sheet Sheet4 (hidden)

Sheet Sheet3 (hidden)

Sheet SolverTableSheet (hidden)
B1: 1
B2: $B$2
B3: 1
B4: 0.1
B5: 1
B6: 0.1
B8: $F$2
B9: 1
B10: 1
B11: 5
B12: 0.5
B14: $B$11
B15: $A$15
